Workbook

Sheet 目录
A1: 附件4
A2: 2024年度鲤城区决算收支表
B3: 目录
A4: 1. | B4: 2024年度一般公共预算收入决算表
A5: 2. | B5: 2024年度一般公共预算支出决算表
A6: 3. | B6: 2024年度本级一般公共预算收入决算表
A7: 4. | B7: 2024年度本级一般公共预算支出决算表
A8: 5. | B8: 2024年度本级一般公共预算支出决算功能分类明细表
A9: 6. | B9: 2024年度本级一般公共预算支出经济分类决算表
A10: 7. | B10: 2024年度本级一般公共预算基本支出经济分类决算表
A11: 8. | B11: 2024年度本级一般公共预算转移支付决算表
A12: 9. | B12: 2024年度本级一般公共预算“三公”经费支出决算情况表
A13: 10. | B13: 2024年度政府性基金预算收入决算表
A14: 11. | B14: 2024年度政府性基金预算支出决算表
A15: 12. | B15: 2024年度本级政府性基金预算收入决算表
A16: 13. | B16: 2024年度本级政府性基金预算支出决算表
A17: 14. | B17: 2024年度本级政府性基金预算转移支付决算表
A18: 15. | B18: 2024年度国有资本经营预算收入决算表
A19: 16. | B19: 2024年度国有资本经营预算支出决算表
A20: 17. | B20: 2024年度本级国有资本经营预算收入决算表
A21: 18. | B21: 2024年度本级国有资本经营预算支出决算表
A22: 19. | B22: 2024年度本级国有资本经营预算转移支付决算表
A23: 20. | B23: 2024年度社会保险基金预算收入决算表
A24: 21. | B24: 2024年度社会保险基金预算支出决算表
A25: 22. | B25: 2024年度本级社会保险基金预算收入决算表
A26: 23. | B26: 2024年度本级社会保险基金预算支出决算表
A27: 24. | B27: 2024年度地方政府债务限额及余额决算情况表
A28: 25. | B28: 2024年度地方政府债务相关情况表
A29: 26. | B29: 2024年度地方政府债券发行及还本付息分地区情况表
A30: 27. | B30: 2024年度地方政府债务余额分年度到期情况表
A31: 28. | B31: 2024年度本级地方政府债券建设项目情况表

Sheet 附表4-1
A1: 附表4-1
A2: 2024年度一般公共预算收入决算表
E3: 单位：万元
A4: 项目 | B4: 调整预算数 | C4: 决算数 | D4: 决算数为预算数的% | E4: 决算数为上年决算数的%
A5: 一、税收收入 | B5: 116590 | C5: 104842 | D5: 89.9% | E5: 101.7%
A6: 增值税 | B6: 50880 | C6: 46398 | D6: 91.2% | E6: 90.6%
A7: 消费税 | B7: 0 | C7: 0 | D7: —— | E7: ——
A8: 企业所得税 | B8: 21340 | C8: 15332 | D8: 71.8% | E8: 84.9%
A9: 个人所得税 | B9: 4240 | C9: 4939 | D9: 116.5% | E9: 107.9%
A10: 资源税 | B10: 0 | C10: 2 | D10: —— | E10: ——
A11: 城市维护建设税 | B11: 9030 | C11: 6037 | D11: 66.9% | E11: 95.0%
A12: 房产税 | B12: 7730 | C12: 6523 | D12: 84.4% | E12: 121.4%
A13: 印花税 | B13: 2920 | C13: 2706 | D13: 92.7% | E13: 146.9%
A14: 城镇土地使用税 | B14: 3930 | C14: 2709 | D14: 68.9% | E14: 102.0%
A15: 土地增值税 | B15: 11300 | C15: 11287 | D15: 99.9% | E15: 143.4%
A16: 车船税 | B16: 5100 | C16: 3824 | D16: 75.0% | E16: 104.3%
A17: 耕地占用税 | B17: 0 | C17: 127 | D17: —— | E17: 31.9%
A18: 契税 | B18: 60 | C18: 4925 | D18: 8208.3% | E18: 464.6%
A19: 烟叶税 | B19: 0 | C19: 0 | D19: —— | E19: ——
A20: 环境保护税 | B20: 60 | C20: 28 | D20: 46.7% | E20: 80.0%
A21: 其他税收收入 | B21: 0 | C21: 5 | D21: —— | E21: ——
A22: 二、非税收入 | B22: 45760 | C22: 57092 | D22: 124.8% | E22: 98.3%
A23: 专项收入 | B23: 4320 | C23: 4347 | D23: 100.6% | E23: 136.0%
A24: 行政事业性收费收入 | B24: 1880 | C24: 1657 | D24: 88.1% | E24: 98.6%
A25: 罚没收入 | B25: 360 | C25: 693 | D25: 192.5% | E25: 80.6%
A26: 国有资本经营收入 | B26: 0 | C26: 4943 | D26: —— | E26: 27.5%
A27: 国有资源(资产)有偿使用收入 | B27: 39000 | C27: 43692 | D27: 112.0% | E27: 1080.4%
A28: 捐赠收入 | B28: 200 | C28: 1110 | D28: 555.0% | E28: 4.0%
A29: 政府住房基金收入 | B29: 0 | C29: 87 | D29: —— | E29: 77.7%
A30: 其他收入 | B30: 0 | C30: 563 | D30: —— | E30: 21.2%
A31: 收入小计 | B31: 162350 | C31: 161934 | D31: 99.7% | E31: 100.4%
A32: 三、债务收入 | B32: 40823 | C32: 40823 | D32: 100.0% | E32: 231.3%
A33: 四、转移性收入 | B33: 213354 | C33: 242673 | D33: =C33/B33 -> 113.7% | E33: 82.8%
A34: 上级补助收入 | B34: 58583 | C34: 87902 | D34: =C34/B34 -> 150.0% | E34: 104.7%
A35: 返还性收入 | B35: 13499 | C35: 13499 | D35: 100.0% | E35: 100.0%
A36: 一般性转移支付收入 | B36: 15337 | C36: 44656 | D36: 291.2% | E36: 79.7%
A37: 专项转移支付收入 | B37: 29747 | C37: 29747 | D37: 100.0% | E37: 206.4%
A38: 上年结余收入 | B38: 42256 | C38: 42256 | D38: 100.0% | E38: 100.1%
A39: 待偿债置换一般债券上年结余 | B39: 0 | C39: 0 | D39: —— | E39: ——
A40: 国债转贷收入、上年结余及转补助数 | B40: 0 | C40: 0 | D40: —— | E40: ——
A41: 调入资金 | B41: 73215 | C41: 73215 | D41: 100.0% | E41: 55.9%
A42: 动用预算稳定调节基金 | B42: 39300 | C42: 39300 | D42: 100.0% | E42: 109.2%
A43: 收入合计 | B43: 416527 | C43: 445430 | D43: 106.9% | E43: 94.3%

Sheet 附表4-2
A1: 附表4-2
A2: 2024年度一般公共预算支出决算表
E3: 单位：万元
A4: 项目 | B4: 调整预算数 | C4: 决算数 | D4: 决算数为预算数的% | E4: 决算数为上年决算数的%
A5: 一、一般公共服务支出 | B5: 29641 | C5: 26060 | D5: =C5/B5 -> 87.9% | E5: 97.8%
A6: 二、外交支出 | B6: 0 | C6: 0 | D6: —— | E6: ——
A7: 三、国防支出 | B7: 1124 | C7: 807 | D7: =C7/B7 -> 71.8% | E7: 177.0%
A8: 四、公共安全支出 | B8: 8066 | C8: 6949 | D8: 86.2% | E8: 95.8%
A9: 五、教育支出 | B9: 92480 | C9: 83530 | D9: 90.3% | E9: 100.6%
A10: 六、科学技术支出 | B10: 4472 | C10: 3653 | D10: 81.7% | E10: 92.1%
A11: 七、文化旅游体育与传媒支出 | B11: 5016 | C11: 3592 | D11: 71.6% | E11: 125.2%
A12: 八、社会保障和就业支出 | B12: 57371 | C12: 55076 | D12: 96.0% | E12: 105.3%
A13: 九、卫生健康支出 | B13: 26824 | C13: 24474 | D13: 91.2% | E13: 94.7%
A14: 十、节能环保支出 | B14: 986 | C14: 865 | D14: 87.7% | E14: 240.3%
A15: 十一、城乡社区支出 | B15: 31093 | C15: 26020 | D15: 83.7% | E15: 142.4%
A16: 十二、农林水支出 | B16: 3818 | C16: 3047 | D16: 79.8% | E16: 101.1%
A17: 十三、交通运输支出 | B17: 559 | C17: 388 | D17: 69.4% | E17: 160.3%
A18: 十四、资源勘探工业信息等支出 | B18: 19775 | C18: 16971 | D18: 85.8% | E18: 188.4%
A19: 十五、商业服务业等支出 | B19: 1503 | C19: 1207 | D19: 80.3% | E19: 132.5%
A20: 十六、金融支出 | B20: 230 | C20: 230 | D20: 100.0% | E20: 158.6%
A21: 十七、援助其他地区支出 | B21: 0 | C21: 0 | D21: —— | E21: ——
A22: 十八、自然资源海洋气象等支出 | B22: 910 | C22: 640 | D22: 70.3% | E22: 135.0%
A23: 十九、住房保障支出 | B23: 14817 | C23: 4635 | D23: 31.3% | E23: 92.5%
A24: 二十、粮油物资储备支出 | B24: 4 | C24: 4 | D24: 100.0% | E24: 0.4%
A25: 二十一、灾害防治及应急管理支出 | B25: 3401 | C25: 2488 | D25: 73.2% | E25: 77.4%
A26: 二十二、预备费 | B26: 0 | C26: 0 | D26: —— | E26: ——
A27: 二十三、其他支出 | B27: 8533 | C27: 6451 | D27: 75.6% | E27: 57.9%
A28: 二十四、债务付息支出 | B28: 7917 | C28: 7917 | D28: 100.0% | E28: 98.5%
A29: 二十五、债务发行费用支出 | B29: 36 | C29: 36 | D29: 100.0% | E29: 211.8%
A30: 支出小计 | B30: 318576 | C30: 275040 | D30: 86.3% | E30: 104.4%
A31: 债务还本支出 | B31: 37801 | C31: 37812 | D31: =C31/B31 -> 100.0% | E31: 211.9%
A32: 转移性支出 | B32: 60150 | C32: 132578 | D32: 220.4% | E32: 69.5%
A33: 补助下级支出 | B33: 0 | C33: 0 | D33: —— | E33: ——
A34: 上解支出 | B34: 57194 | C34: 58067 | D34: 101.5% | E34: 107.3%
A35: 援助其他地区支出 | B35: 155 | C35: 161 | D35: 103.9% | E35: ——
A36: 补充预算周转金 | B36: 0 | C36: 0 | D36: —— | E36: ——
A37: 国债转贷拨付数及年终结余 | B37: 0 | C37: 0 | D37: —— | E37: ——
A38: 安排预算稳定调节基金 | C38: 28013 | D38: —— | E38: 42.7%
A39: 调出资金 | B39: 2801 | C39: 2801 | D39: 100.0% | E39: 9.8%
A40: 待偿债置换一般债券结余 | B40: 0 | C40: 0 | D40: —— | E40: ——
A41: 年终结余 | C41: 43536 | D41: —— | E41: 103.0%
A42: 支出合计 | B42: 416527 | C42: 445430 | D42: 106.9% | E42: 94.4%

Sheet 附表4-3
A1: 附表4-3
A2: 2024年度本级一般公共预算收入决算表
E3: 单位：万元
A4: 项目 | B4: 调整预算数 | C4: 决算数 | D4: 决算数为预算数的% | E4: 决算数为上年决算数的%
A5: 一、税收收入 | B5: 116590 | C5: 104842 | D5: 89.9% | E5: 101.7%
A6: 增值税 | B6: 50880 | C6: 46398 | D6: 91.2% | E6: 90.6%
A7: 消费税 | B7: 0 | C7: 0 | D7: —— | E7: ——
A8: 企业所得税 | B8: 21340 | C8: 15332 | D8: 71.8% | E8: 84.9%
A9: 个人所得税 | B9: 4240 | C9: 4939 | D9: 116.5% | E9: 107.9%
A10: 资源税 | B10: 0 | C10: 2 | D10: —— | E10: ——
A11: 城市维护建设税 | B11: 9030 | C11: 6037 | D11: 66.9% | E11: 95.0%
A12: 房产税 | B12: 7730 | C12: 6523 | D12: 84.4% | E12: 121.4%
A13: 印花税 | B13: 2920 | C13: 2706 | D13: 92.7% | E13: 146.9%
A14: 城镇土地使用税 | B14: 3930 | C14: 2709 | D14: 68.9% | E14: 102.0%
A15: 土地增值税 | B15: 11300 | C15: 11287 | D15: 99.9% | E15: 143.4%
A16: 车船税 | B16: 5100 | C16: 3824 | D16: 75.0% | E16: 104.3%
A17: 耕地占用税 | B17: 0 | C17: 127 | D17: —— | E17: 31.9%
A18: 契税 | B18: 60 | C18: 4925 | D18: 8208.3% | E18: 464.6%
A19: 烟叶税 | B19: 0 | C19: 0 | D19: —— | E19: ——
A20: 环境保护税 | B20: 60 | C20: 28 | D20: 46.7% | E20: 80.0%
A21: 其他税收收入 | B21: 0 | C21: 5 | D21: —— | E21: ——
A22: 二、非税收入 | B22: 45760 | C22: 57092 | D22: 124.8% | E22: 98.3%
A23: 专项收入 | B23: 4320 | C23: 4347 | D23: 100.6% | E23: 136.0%
A24: 行政事业性收费收入 | B24: 1880 | C24: 1657 | D24: 88.1% | E24: 98.6%
A25: 罚没收入 | B25: 360 | C25: 693 | D25: 192.5% | E25: 80.6%
A26: 国有资本经营收入 | B26: 0 | C26: 4943 | D26: —— | E26: 27.5%
A27: 国有资源(资产)有偿使用收入 | B27: 39000 | C27: 43692 | D27: 112.0% | E27: 1080.4%
A28: 捐赠收入 | B28: 200 | C28: 1110 | D28: 555.0% | E28: 4.0%
A29: 政府住房基金收入 | B29: 0 | C29: 87 | D29: —— | E29: 77.7%
A30: 其他收入 | B30: 0 | C30: 563 | D30: —— | E30: 21.2%
A31: 收入小计 | B31: 162350 | C31: 161934 | D31: 99.7% | E31: 100.4%
A32: 三、债务收入 | B32: 40823 | C32: 40823 | D32: 100.0% | E32: 231.3%
A33: 四、转移性收入 | B33: 213354 | C33: 242673 | D33: =C33/B33 -> 113.7% | E33: 82.8%
A34: 上级补助收入 | B34: 58583 | C34: 87902 | D34: =C34/B34 -> 150.0% | E34: 104.7%
A35: 返还性收入 | B35: 13499 | C35: 13499 | D35: =C35/B35 -> 100.0% | E35: 100.0%
A36: 一般性转移支付收入 | B36: 15337 | C36: 44656 | D36: =C36/B36 -> 291.2% | E36: 79.7%
A37: 专项转移支付收入 | B37: 29747 | C37: 29747 | D37: =C37/B37 -> 100.0% | E37: 206.4%
A38: 上解收入 | B38: 0 | C38: 0 | D38: —— | E38: ——
A39: 上年结余收入 | B39: 42256 | C39: 42256 | D39: 100.0% | E39: 100.1%
A40: 待偿债置换一般债券上年结余 | B40: 0 | C40: 0 | D40: —— | E40: ——
A41: 国债转贷收入、上年结余及转补助数 | B41: 0 | C41: 0 | D41: —— | E41: ——
A42: 调入资金 | B42: 73215 | C42: 73215 | D42: 100.0% | E42: 55.9%
A43: 动用预算稳定调节基金 | B43: 39300 | C43: 39300 | D43: 100.0% | E43: 109.2%
A44: 收入合计 | B44: 416527 | C44: 445430 | D44: =C44/B44 -> 106.9% | E44: 94.3%

Sheet 附表4-4
A1: 附表4-4
A2: 2024年度本级一般公共预算支出决算表
E3: 单位：万元
A4: 项目 | B4: 调整预算数 | C4: 决算数 | D4: 决算数为预算数的% | E4: 决算数为上年决算数的%
A5: 一、一般公共服务支出 | B5: 29641 | C5: 26060 | D5: 87.9% | E5: 97.8%
A6: 二、外交支出 | B6: 0 | C6: 0 | D6: —— | E6: ——
A7: 三、国防支出 | B7: 1124 | C7: 807 | D7: 71.8% | E7: 177.0%
A8: 四、公共安全支出 | B8: 8066 | C8: 6949 | D8: 86.2% | E8: 95.8%
A9: 五、教育支出 | B9: 92480 | C9: 83530 | D9: 90.3% | E9: 100.6%
A10: 六、科学技术支出 | B10: 4472 | C10: 3653 | D10: 81.7% | E10: 92.1%
A11: 七、文化旅游体育与传媒支出 | B11: 5016 | C11: 3592 | D11: 71.6% | E11: 125.2%
A12: 八、社会保障和就业支出 | B12: 57371 | C12: 55076 | D12: 96.0% | E12: 105.3%
A13: 九、卫生健康支出 | B13: 26824 | C13: 24474 | D13: 91.2% | E13: 94.7%
A14: 十、节能环保支出 | B14: 986 | C14: 865 | D14: 87.7% | E14: 240.3%
A15: 十一、城乡社区支出 | B15: 31093 | C15: 26020 | D15: 83.7% | E15: 142.4%
A16: 十二、农林水支出 | B16: 3818 | C16: 3047 | D16: 79.8% | E16: 101.1%
A17: 十三、交通运输支出 | B17: 559 | C17: 388 | D17: 69.4% | E17: 160.3%
A18: 十四、资源勘探工业信息等支出 | B18: 19775 | C18: 16971 | D18: 85.8% | E18: 188.4%
A19: 十五、商业服务业等支出 | B19: 1503 | C19: 1207 | D19: 80.3% | E19: 132.5%
A20: 十六、金融支出 | B20: 230 | C20: 230 | D20: 100.0% | E20: 158.6%
A21: 十七、援助其他地区支出 | B21: 0 | C21: 0 | D21: —— | E21: ——
A22: 十八、自然资源海洋气象等支出 | B22: 910 | C22: 640 | D22: 70.3% | E22: 135.0%
A23: 十九、住房保障支出 | B23: 14817 | C23: 4635 | D23: 31.3% | E23: 92.5%
A24: 二十、粮油物资储备支出 | B24: 4 | C24: 4 | D24: 100.0% | E24: 0.4%
A25: 二十一、灾害防治及应急管理支出 | B25: 3401 | C25: 2488 | D25: 73.2% | E25: 77.4%
A26: 二十二、预备费 | B26: 0 | C26: 0 | D26: —— | E26: ——
A27: 二十三、其他支出 | B27: 8533 | C27: 6451 | D27: 75.6% | E27: 57.9%
A28: 二十四、债务付息支出 | B28: 7917 | C28: 7917 | D28: 100.0% | E28: 98.5%
A29: 二十五、债务发行费用支出 | B29: 36 | C29: 36 | D29: 100.0% | E29: 211.8%
A30: 支出小计 | B30: 318576 | C30: 275040 | D30: 86.3% | E30: 104.4%
A31: 债务还本支出 | B31: 37801 | C31: 37812 | D31: =C31/B31 -> 100.0% | E31: 211.9%
A32: 转移性支出 | B32: 60150 | C32: 132578 | D32: =C32/B32 -> 220.4% | E32: 69.4%
A33: 补助下级支出 | B33: 0 | C33: 0 | D33: —— | E33: ——
A34: 上解支出 | B34: 57194 | C34: 58067 | D34: =C34/B34 -> 101.5% | E34: 107.3%
A35: 债务转贷支出 | B35: 0 | C35: 0 | D35: —— | E35: ——
A36: 援助其他地区支出 | B36: 155 | C36: 161 | D36: =C36/B36 -> 103.9% | E36: 103.9%
A37: 国债转贷拨付数及年终结余 | B37: 0 | C37: 0 | D37: —— | E37: ——
A38: 调出资金 | B38: 2801 | C38: 2801 | D38: 100.0% | E38: 9.8%
A39: 安排预算稳定调节基金 | C39: 28013 | D39: —— | E39: 42.7%
A40: 补充预算周转金 | B40: 0 | C40: 0 | D40: —— | E40: ——
A41: 待偿债置换一般债券结余 | B41: 0 | C41: 0 | D41: —— | E41: ——
A42: 年终结余 | C42: 43536 | D42: —— | E42: 103.0%
A43: 支出合计 | B43: 416527 | C43: 445430 | D43: =C43/B43 -> 106.9% | E43: 94.3%

Sheet 附表4-5
B1: 附表4-5 | D1: DDD
B2: 2024年度本级一般公共预算支出决算功能分类明细表
D3: 单位：万元
A4: 科目代码 | B4: 预算科目 | C4: 决算数 | D4: 决算数为上年决算数的%
B6: 一般公共预算支出 | C6: 275040 | D6: 104.4%
A7: 201 | B7: 一般公共服务支出 | C7: 26060 | D7: 97.8%
A8: 20101 | B8: 人大事务 | C8: 929 | D8: 97.9%
A9: 2010101 | B9: 行政运行 | C9: 687 | D9: 92.7%
A10: 2010102 | B10: 一般行政管理事务 | C10: 99 | D10: 128.6%
A11: 2010103 | B11: 机关服务 | D11: ——
A12: 2010104 | B12: 人大会议 | C12: 43 | D12: 82.7%
A13: 2010105 | B13: 人大立法 | D13: ——
A14: 2010106 | B14: 人大监督 | D14: ——
A15: 2010107 | B15: 人大代表履职能力提升 | D15: ——
A16: 2010108 | B16: 代表工作 | C16: 46 | D16: 112.2%
A17: 2010109 | B17: 人大信访工作 | D17: ——
A18: 2010150 | B18: 事业运行 | C18: 54 | D18: 142.1%
A19: 2010199 | B19: 其他人大事务支出 | D19: ——
A20: 20102 | B20: 政协事务 | C20: 704 | D20: 94.9%
A21: 2010201 | B21: 行政运行 | C21: 548 | D21: 95.3%
A22: 2010202 | B22: 一般行政管理事务 | C22: 69 | D22: 82.1%
A23: 2010203 | B23: 机关服务 | D23: ——
A24: 2010204 | B24: 政协会议 | C24: 36 | D24: 94.7%
A25: 2010205 | B25: 委员视察 | D25: ——
A26: 2010206 | B26: 参政议政 | D26: ——
A27: 2010250 | B27: 事业运行 | C27: 51 | D27: 113.3%
A28: 2010299 | B28: 其他政协事务支出 | D28: ——
A29: 20103 | B29: 政府办公厅(室)及相关机构事务 | C29: 6542 | D29: 96.1%
A30: 2010301 | B30: 行政运行 | C30: 2501 | D30: 75.9%
A31: 2010302 | B31: 一般行政管理事务 | C31: 197 | D31: 94.3%
A32: 2010303 | B32: 机关服务 | C32: 2505 | D32: 127.7%
A33: 2010304 | B33: 专项服务 | D33: ——
A34: 2010305 | B34: 专项业务及机关事务管理 | D34: ——
A35: 2010306 | B35: 政务公开审批 | C35: 878 | D35: 124.2%
A36: 2010309 | B36: 参事事务 | D36: ——
A37: 2010350 | B37: 事业运行 | C37: 461 | D37: 98.1%
A38: 2010399 | B38: 其他政府办公厅(室)及相关机构事务支出 | D38: ——
A39: 20104 | B39: 发展与改革事务 | C39: 1176 | D39: 110.7%
A40: 2010401 | B40: 行政运行 | C40: 253 | D40: 103.7%
A41: 2010402 | B41: 一般行政管理事务 | C41: 428 | D41: 272.6%
A42: 2010403 | B42: 机关服务 | D42: ——
A43: 2010404 | B43: 战略规划与实施 | C43: 55 | D43: ——
A44: 2010405 | B44: 日常经济运行调节 | D44: ——
A45: 2010406 | B45: 社会事业发展规划 | C45: 68 | D45: 50.0%
A46: 2010407 | B46: 经济体制改革研究 | D46: ——
A47: 2010408 | B47: 物价管理 | C47: 20 | D47: 51.3%
A48: 2010450 | B48: 事业运行 | C48: 352 | D48: 98.1%
A49: 2010499 | B49: 其他发展与改革事务支出 | D49: 0.0%
A50: 20105 | B50: 统计信息事务 | C50: 727 | D50: 129.8%
A51: 2010501 | B51: 行政运行 | C51: 360 | D51: 103.4%
A52: 2010502 | B52: 一般行政管理事务 | C52: 9 | D52: 180.0%
A53: 2010503 | B53: 机关服务 | D53: ——
A54: 2010504 | B54: 信息事务 | D54: ——
A55: 2010505 | B55: 专项统计业务 | C55: 96 | D55: 95.0%
A56: 2010506 | B56: 统计管理 | D56: ——
A57: 2010507 | B57: 专项普查活动 | C57: 208 | D57: 400.0%
A58: 2010508 | B58: 统计抽样调查 | D58: ——
A59: 2010550 | B59: 事业运行 | C59: 54 | D59: 100.0%
A60: 2010599 | B60: 其他统计信息事务支出 | D60: ——
A61: 20106 | B61: 财政事务 | C61: 1267 | D61: 105.8%
A62: 2010601 | B62: 行政运行 | C62: 265 | D62: 103.5%
A63: 2010602 | B63: 一般行政管理事务 | C63: 149 | D63: 90.9%
A64: 2010603 | B64: 机关服务 | D64: ——
A65: 2010604 | B65: 预算改革业务 | D65: ——
A66: 2010605 | B66: 财政国库业务 | D66: ——
A67: 2010606 | B67: 财政监察 | D67: ——
A68: 2010607 | B68: 信息化建设 | D68: ——
A69: 2010608 | B69: 财政委托业务支出 | D69: ——
A70: 2010650 | B70: 事业运行 | C70: 838 | D70: 107.9%
A71: 2010699 | B71: 其他财政事务支出 | C71: 15 | D71: ——
A72: 20107 | B72: 税收事务 | C72: 1350 | D72: 54.3%
A73: 2010701 | B73: 行政运行 | D73: ——
A74: 2010702 | B74: 一般行政管理事务 | D74: ——
A75: 2010703 | B75: 机关服务 | D75: ——
A76: 2010709 | B76: 信息化建设 | D76: ——
A77: 2010710 | B77: 税收业务 | D77: ——
A78: 2010750 | B78: 事业运行 | D78: ——
A79: 2010799 | B79: 其他税收事务支出 | C79: 1350 | D79: 54.3%
A80: 20108 | B80: 审计事务 | C80: 360 | D80: 105.9%
A81: 2010801 | B81: 行政运行 | C81: 134 | D81: 103.1%
A82: 2010802 | B82: 一般行政管理事务 | D82: 0.0%
A83: 2010803 | B83: 机关服务 | D83: ——
A84: 2010804 | B84: 审计业务 | D84: 0.0%
A85: 2010805 | B85: 审计管理 | D85: ——
A86: 2010806 | B86: 信息化建设 | D86: ——
A87: 2010850 | B87: 事业运行 | C87: 218 | D87: 112.4%
A88: 2010899 | B88: 其他审计事务支出 | C88: 8 | D88: 72.7%
A89: 20109 | B89: 海关事务 | C89: 0 | D89: ——
A90: 2010901 | B90: 行政运行 | D90: ——
A91: 2010902 | B91: 一般行政管理事务 | D91: ——
A92: 2010903 | B92: 机关服务 | D92: ——
A93: 2010905 | B93: 缉私办案 | D93: ——
A94: 2010907 | B94: 口岸管理 | D94: ——
A95: 2010908 | B95: 信息化建设 | D95: ——
A96: 2010909 | B96: 海关关务 | D96: ——
A97: 2010910 | B97: 关税征管 | D97: ——
A98: 2010911 | B98: 海关监管 | D98: ——
A99: 2010912 | B99: 检验检疫 | D99: ——
A100: 2010950 | B100: 事业运行 | D100: ——
A101: 2010999 | B101: 其他海关事务支出 | D101: ——
A102: 20111 | B102: 纪检监察事务 | C102: 2057 | D102: 105.2%
A103: 2011101 | B103: 行政运行 | C103: 1347 | D103: 103.1%
A104: 2011102 | B104: 一般行政管理事务 | C104: 216 | D104: 150.0%
A105: 2011103 | B105: 机关服务 | D105: ——
A106: 2011104 | B106: 大案要案查处 | C106: 120 | D106: 100.0%
A107: 2011105 | B107: 派驻派出机构 | D107: ——
A108: 2011106 | B108: 巡视工作 | D108: ——
A109: 2011150 | B109: 事业运行 | C109: 374 | D109: 97.1%
A110: 2011199 | B110: 其他纪检监察事务支出 | D110: ——
A111: 20113 | B111: 商贸事务 | C111: 980 | D111: 89.3%
A112: 2011301 | B112: 行政运行 | C112: 377 | D112: 97.4%
A113: 2011302 | B113: 一般行政管理事务 | C113: 141 | D113: 69.1%
A114: 2011303 | B114: 机关服务 | D114: ——
A115: 2011304 | B115: 对外贸易管理 | D115: ——
A116: 2011305 | B116: 国际经济合作 | D116: ——
A117: 2011306 | B117: 外资管理 | D117: ——
A118: 2011307 | B118: 国内贸易管理 | D118: ——
A119: 2011308 | B119: 招商引资 | D119: ——
A120: 2011350 | B120: 事业运行 | C120: 462 | D120: 91.3%
A121: 2011399 | B121: 其他商贸事务支出 | D121: ——
A122: 20114 | B122: 知识产权事务 | C122: 51 | D122: 96.2%
A123: 2011401 | B123: 行政运行 | D123: ——
A124: 2011402 | B124: 一般行政管理事务 | D124: ——
A125: 2011403 | B125: 机关服务 | D125: ——
A126: 2011404 | B126: 专利审批 | D126: ——
A127: 2011405 | B127: 知识产权战略和规划 | D127: ——
A128: 2011408 | B128: 国际合作与交流 | D128: ——
A129: 2011409 | B129: 知识产权宏观管理 | D129: ——
A130: 2011410 | B130: 商标管理 | D130: ——
A131: 2011411 | B131: 原产地地理标志管理 | D131: ——
A132: 2011450 | B132: 事业运行 | D132: ——
A133: 2011499 | B133: 其他知识产权事务支出 | C133: 51 | D133: 96.2%
A134: 20123 | B134: 民族事务 | C134: 68 | D134: 100.0%
A135: 2012301 | B135: 行政运行 | D135: ——
A136: 2012302 | B136: 一般行政管理事务 | C136: 68 | D136: 100.0%
A137: 2012303 | B137: 机关服务 | D137: ——
A138: 2012304 | B138: 民族工作专项 | D138: ——
A139: 2012350 | B139: 事业运行 | D139: ——
A140: 2012399 | B140: 其他民族事务支出 | D140: ——
A141: 20125 | B141: 港澳台事务 | C141: 83 | D141: ——
A142: 2012501 | B142: 行政运行 | C142: 60 | D142: ——
A143: 2012502 | B143: 一般行政管理事务 | C143: 18 | D143: ——
A144: 2012503 | B144: 机关服务 | D144: ——
A145: 2012504 | B145: 港澳事务 | D145: ——
A146: 2012505 | B146: 台湾事务 | C146: 5 | D146: ——
A147: 2012550 | B147: 事业运行 | D147: ——
A148: 2012599 | B148: 其他港澳台事务支出 | D148: ——
A149: 20126 | B149: 档案事务 | C149: 403 | D149: 118.9%
A150: 2012601 | B150: 行政运行 | C150: 336 | D150: 110.9%
A151: 2012602 | B151: 一般行政管理事务 | C151: 67 | D151: 186.1%
A152: 2012603 | B152: 机关服务 | D152: ——
A153: 2012604 | B153: 档案馆 | D153: ——
A154: 2012699 | B154: 其他档案事务支出 | D154: ——
A155: 20128 | B155: 民主党派及工商联事务 | C155: 93 | D155: 105.7%
A156: 2012801 | B156: 行政运行 | C156: 80 | D156: 117.6%
A157: 2012802 | B157: 一般行政管理事务 | C157: 13 | D157: 65.0%
A158: 2012803 | B158: 机关服务 | D158: ——
A159: 2012804 | B159: 参政议政 | D159: ——
A160: 2012850 | B160: 事业运行 | D160: ——
A161: 2012899 | B161: 其他民主党派及工商联事务支出 | D161: ——
A162: 20129 | B162: 群众团体事务 | C162: 1056 | D162: 101.8%
A163: 2012901 | B163: 行政运行 | C163: 583 | D163: 100.5%
A164: 2012902 | B164: 一般行政管理事务 | C164: 289 | D164: 99.0%
A165: 2012903 | B165: 机关服务 | D165: ——
A166: 2012906 | B166: 工会事务 | D166: ——
A167: 2012950 | B167: 事业运行 | C167: 165 | D167: 113.0%
A168: 2012999 | B168: 其他群众团体事务支出 | C168: 19 | D168: 100.0%
A169: 20131 | B169: 党委办公厅(室)及相关机构事务 | C169: 812 | D169: 102.3%
A170: 2013101 | B170: 行政运行 | C170: 442 | D170: 105.0%
A171: 2013102 | B171: 一般行政管理事务 | C171: 206 | D171: 137.3%
A172: 2013103 | B172: 机关服务 | D172: ——
A173: 2013105 | B173: 专项业务 | D173: ——
A174: 2013150 | B174: 事业运行 | C174: 164 | D174: 97.0%
A175: 2013199 | B175: 其他党委办公厅(室)及相关机构事务支出 | D175: 0.0%
A176: 20132 | B176: 组织事务 | C176: 1363 | D176: 140.7%
A177: 2013201 | B177: 行政运行 | C177: 421 | D177: 106.3%
A178: 2013202 | B178: 一般行政管理事务 | C178: 906 | D178: 166.2%
A179: 2013203 | B179: 机关服务 | D179: ——
A180: 2013204 | B180: 公务员事务 | D180: ——
A181: 2013250 | B181: 事业运行 | C181: 36 | D181: 128.6%
A182: 2013299 | B182: 其他组织事务支出 | D182: ——
A183: 20133 | B183: 宣传事务 | C183: 1743 | D183: 83.1%
A184: 2013301 | B184: 行政运行 | C184: 591 | D184: 101.0%
A185: 2013302 | B185: 一般行政管理事务 | C185: 880 | D185: 74.2%
A186: 2013303 | B186: 机关服务 | D186: ——
A187: 2013304 | B187: 宣传管理 | D187: ——
A188: 2013350 | B188: 事业运行 | C188: 272 | D188: 83.7%
A189: 2013399 | B189: 其他宣传事务支出 | D189: 0.0%
A190: 20134 | B190: 统战事务 | C190: 523 | D190: 60.2%
A191: 2013401 | B191: 行政运行 | C191: 235 | D191: 107.3%
A192: 2013402 | B192: 一般行政管理事务 | C192: 177 | D192: 33.3%
A193: 2013403 | B193: 机关服务 | D193: ——
A194: 2013404 | B194: 宗教事务 | C194: 5 | D194: 83.3%
A195: 2013405 | B195: 华侨事务 | C195: 21 | D195: 80.8%
A196: 2013450 | B196: 事业运行 | C196: 85 | D196: 98.8%
A197: 2013499 | B197: 其他统战事务支出 | D197: ——
A198: 20135 | B198: 对外联络事务 | C198: 0 | D198: ——
A199: 2013501 | B199: 行政运行 | D199: ——
A200: 2013502 | B200: 一般行政管理事务 | D200: ——
A201: 2013503 | B201: 机关服务 | D201: ——
... 1132 more rows

Sheet 附表4-6
A1: 附表4-6
A2: 2024年度本级一般公共预算支出经济分类决算表
D3: 单位：万元
A4: 项目 | B4: 预算数 | C4: 决算数 | D4: 决算数为预算数的%
A5: 一、机关工资福利支出 | B5: 20796 | C5: 20399 | D5: =C5/B5 -> 98.1%
A6: 二、机关商品和服务支出 | B6: 46791 | C6: 25205 | D6: =C6/B6 -> 53.9%
A7: 三、机关资本性支出 | B7: 10853 | C7: 6819 | D7: 62.8%
A8: 四、机关资本性支出（基本建设） | B8: 20637 | C8: 17553 | D8: 85.1%
A9: 五、对事业单位经常性补助 | B9: 109188 | C9: 105102 | D9: 96.3%
A10: 六、对事业单位资本性补助 | B10: 12677 | C10: 6978 | D10: 55.0%
A11: 七、对企业补助 | B11: 25278 | C11: 23118 | D11: 91.5%
A12: 八、对企业资本性支出 | B12: 3298 | C12: 2586 | D12: 78.4%
A13: 九、对个人和家庭的补助 | B13: 27767 | C13: 26999 | D13: 97.2%
A14: 十、对社会保障基金补助 | B14: 21979 | C14: 21979 | D14: 100.0%
A15: 十一、债务利息及费用支出 | B15: 7953 | C15: 7953 | D15: 100.0%
A16: 十二、债务还本支出 | B16: 0 | C16: 0 | D16: ——
A17: 十三、转移性支出 | B17: 0 | C17: 0 | D17: ——
A18: 十四、预备费及预留 | B18: 0 | C18: 0 | D18: ——
A19: 十五、其他支出 | B19: 11359 | C19: 10349 | D19: =C19/B19 -> 91.1%
A20: 合计 | B20: 318576 | C20: 275040 | D20: =C20/B20 -> 86.3%

Sheet 附表4-7
A1: 附表4-7
A2: 2024年度本级一般公共预算基本支出经济分类决算表
D3: 单位：万元
A4: 项目 | B4: 预算数 | C4: 决算数（试编） | D4: 决算数为预算数的%
A5: 一、机关工资福利支出 | B5: 23554 | C5: 17165 | D5: 72.9%
A6: 工资奖金津补贴 | B6: 13390 | C6: 11216 | D6: 83.8%
A7: 社会保障缴费 | B7: 2102 | C7: 2162 | D7: 102.9%
A8: 住房公积金 | B8: 1202 | C8: 1254 | D8: 104.3%
A9: 其他工资福利支出 | B9: 6860 | C9: 2533 | D9: 36.9%
A10: 二、机关商品和服务支出 | B10: 5233 | C10: 2635 | D10: 50.4%
A11: 办公经费 | B11: 592 | C11: 2026 | D11: 342.2%
A12: 会议费 | B12: 0 | C12: 1 | D12: ——
A13: 培训费 | B13: 0 | C13: 2 | D13: ——
A14: 专用材料购置费 | B14: 0 | C14: 0 | D14: ——
A15: 委托业务费 | B15: 317 | C15: 170 | D15: 53.6%
A16: 公务接待费 | B16: 0 | C16: 28 | D16: ——
A17: 因公出国（境）费用 | B17: 0 | C17: 18 | D17: ——
A18: 公务用车运行维护费 | B18: 186 | C18: 94 | D18: 50.5%
A19: 维修（护）费 | B19: 0 | C19: 49 | D19: ——
A20: 其他商品和服务支出 | B20: 4138 | C20: 247 | D20: 6.0%
A21: 三、机关资本性支出 | B21: 570 | C21: 160 | D21: 28.1%
A22: 房屋建筑物购建 | B22: 0 | C22: 0 | D22: ——
A23: 基础设施建设 | B23: 0 | C23: 0 | D23: ——
A24: 公务用车购置 | B24: 0 | C24: 25 | D24: ——
A25: 土地征迁补偿和安置支出 | B25: 0 | C25: 0 | D25: ——
A26: 设备购置 | B26: 570 | C26: 135 | D26: 23.7%
A27: 大型修缮 | B27: 0 | C27: 0 | D27: ——
A28: 其他资本性支出 | B28: 0 | C28: 0 | D28: ——
A29: 四、机关资本性支出（基本建设） | B29: 0 | C29: 0 | D29: ——
A30: 房屋建筑物购建 | B30: 0 | C30: 0 | D30: ——
A31: 基础设施建设 | B31: 0 | C31: 0 | D31: ——
A32: 公务用车购置 | B32: 0 | C32: 0 | D32: ——
A33: 设备购置 | B33: 0 | C33: 0 | D33: ——
A34: 大型修缮 | B34: 0 | C34: 0 | D34: ——
A35: 其他资本性支出 | B35: 0 | C35: 0 | D35: ——
A36: 五、对事业单位经常性补助 | B36: 94014 | C36: 93449 | D36: 99.4%
A37: 工资福利支出 | B37: 87044 | C37: 84033 | D37: 96.5%
A38: 商品和服务支出 | B38: 6970 | C38: 9416 | D38: 135.1%
A39: 其他对事业单位补助 | B39: 0 | C39: 0 | D39: ——
A40: 六、对事业单位资本性补助 | B40: 0 | C40: 1019 | D40: ——
A41: 资本性支出 | B41: 0 | C41: 1019 | D41: ——
A42: 资本性支出（基本建设） | B42: 0 | C42: 0 | D42: ——
A43: 七、对企业补助 | B43: 0 | C43: 30 | D43: ——
A44: 费用补贴 | B44: 0 | C44: 0 | D44: ——
A45: 利息补贴 | B45: 0 | C45: 0 | D45: ——
A46: 其他对企业补助 | B46: 0 | C46: 30 | D46: ——
A47: 八、对企业资本性支出 | B47: 0 | C47: 0 | D47: ——
A48: 资本金注入 | B48: 0 | C48: 0 | D48: ——
A49: 资本金注入（基本建设） | B49: 0 | C49: 0 | D49: ——
A50: 政府投资基金股权投资 | B50: 0 | C50: 0 | D50: ——
A51: 其他对企业资本性支出 | B51: 0 | C51: 0 | D51: ——
A52: 九、对个人和家庭的补助 | B52: 10650 | C52: 11790 | D52: 110.7%
A53: 社会福利和救助 | B53: 287 | C53: 1153 | D53: 401.7%
A54: 助学金 | B54: 0 | C54: 111 | D54: ——
A55: 个人农业生产补贴 | B55: 0 | C55: 0 | D55: ——
A56: 离退休费 | B56: 9087 | C56: 10162 | D56: 111.8%
A57: 其他对个人和家庭的补助 | B57: 1276 | C57: 364 | D57: 28.5%
A58: 十、对社会保障基金补助 | B58: 0 | C58: 0 | D58: ——
A59: 对社会保险基金补助 | B59: 0 | C59: 0 | D59: ——
A60: 补充全国社会保障基金 | B60: 0 | C60: 0 | D60: ——
A61: 对机关事业单位职业年金的补助 | B61: 0 | C61: 0 | D61: ——
A62: 十一、债务利息及费用支出 | B62: 8252 | C62: 0 | D62: 0.0%
A63: 国内债务付息 | B63: 8217 | C63: 0 | D63: 0.0%
A64: 国外债务付息 | B64: 0 | C64: 0 | D64: ——
A65: 国内债务发行费用 | B65: 35 | C65: 0 | D65: 0.0%
A66: 国外债务发行费用 | B66: 0 | C66: 0 | D66: ——
A67: 十二、债务还本支出 | B67: 0 | C67: 0 | D67: ——
A68: 国内债务还本 | B68: 0 | C68: 0 | D68: ——
A69: 国外债务还本 | B69: 0 | C69: 0 | D69: ——
A70: 十三、转移性支出 | B70: 0 | C70: 0 | D70: ——
A71: 上下级政府间转移性支出 | B71: 0 | C71: 0 | D71: ——
A72: 债务转贷 | B72: 0 | C72: 0 | D72: ——
A73: 调出资金 | B73: 0 | C73: 0 | D73: ——
A74: 安排预算稳定调节基金 | B74: 0 | C74: 0 | D74: ——
A75: 补充预算周转金 | B75: 0 | C75: 0 | D75: ——
A76: 区域间转移性支出 | B76: 0 | C76: 0 | D76: ——
A77: 十四、预备费及预留 | B77: 0 | C77: 0 | D77: ——
A78: 预备费 | B78: 0 | C78: 0 | D78: ——
A79: 预留 | B79: 0 | C79: 0 | D79: ——
A80: 十五、其他支出 | B80: 2307 | C80: 2150 | D80: 93.2%
A81: 国家赔偿费用支出 | B81: 0 | C81: 0 | D81: ——
A82: 对民间非营利组织和群众性自治组织补贴 | B82: 2307 | C82: 2150 | D82: 93.2%
A83: 经常性赠与 | B83: 0 | C83: 0 | D83: ——
A84: 资本性赠与 | B84: 0 | C84: 0 | D84: ——
A85: 其他支出 | B85: 0 | C85: 0 | D85: ——
A86: 合计 | B86: 144580 | C86: 128398 | D86: 88.8%

Sheet 附表4-8
A1: 附表4-8
A2: 2024年度本级一般公共预算转移支付决算表
E3: 单位：万元
A4: 项目 | B4: 小计 | C4: ××地区 | D4: ××地区 | E4: ××地区 | F4: ……
A5: 一、税收返还
A6: 1.所得税基数返还支出
A7: 2.成品油税费改革税收返还支出
A8: 3.增值税税收返还支出
A9: 4.消费税税收返还支出
A10: 5.增值税“五五分享”税收返还支出
A11: 二、一般性转移支付
A12: 1.体制补助支出
A13: 2.均衡性转移支付支出
A14: 3.县级基本财力保障机制奖补资金支出
A15: 4.结算补助支出
A16: 5.资源枯竭型城市转移支付补助支出
A17: 6.企业事业单位划转补助支出
A18: 7.产粮（油）大县奖励资金支出
A19: 8.重点生态功能区转移支付支出
A20: 9.固定数额补助支出
A21: 10.革命老区转移支付支出
A22: 11.民族地区转移支付支出
A23: 12.边境地区转移支付支出
A24: 13.巩固脱贫攻坚成果衔接乡村振兴转移支付支出
A25: 14.一般公共服务共同财政事权转移支付支出
A26: 15.公共安全共同财政事权转移支付支出
A27: 16.教育共同财政事权转移支付支出
A28: 17.科学技术共同财政事权转移支付支出
A29: 18.文化旅游体育与传媒共同财政事权转移支付支出
A30: 19.社会保障和就业共同财政事权转移支付支出
A31: 20.医疗卫生共同财政事权转移支付支出
A32: 21.节能环保共同财政事权转移支付支出
A33: 22.城乡社区共同财政事权转移支付支出
A34: 23.农林水共同财政事权转移支付支出
A35: 24.交通运输共同财政事权转移支付支出
A36: 25.资源勘探工业信息等共同财政事权转移支付支出
A37: 26.商业服务业等共同财政事权转移支付支出
A38: 27.金融共同财政事权转移支付支出
A39: 28.自然资源海洋气象等共同财政事权转移支付支出
A40: 29.住房保障共同财政事权转移支付支出
A41: 30.粮油物资储备共同财政事权转移支付支出
A42: 31.灾害防治及应急管理共同财政事权转移支付支出
A43: 32.其他共同财政事权转移支付支出
A44: 33.其他一般性转移支付支出
A45: 三、专项转移支付
A46: 1.一般公共服务支出
A47: 其中：××项目 …………
A48: 2.公共安全支出
A49: 其中：××项目 …………
A50: 3.教育支出
A51: 其中：××项目 …………
A52: 4.科学技术支出
A53: 其中：××项目 …………
A54: 5.文化旅游体育与传媒支出
A55: 其中：××项目 …………
A56: 6.社会保障和就业支出
A57: 其中：××项目 …………
A58: 7.卫生健康支出
A59: 其中：××项目 …………
A60: 8.节能环保支出
A61: 其中：××项目 …………
A62: 9.城乡社区支出
A63: 其中：××项目 …………
A64: 10.农林水支出
A65: 其中：××项目 …………
A66: 11.交通运输支出
A67: 其中：××项目 …………
A68: 12.资源勘探工业信息等支出
A69: 其中：××项目 …………
A70: 13.商业服务业等支出
A71: 其中：××项目 …………
A72: 14.金融支出
A73: 其中：××项目 …………
A74: 15.自然资源海洋气象等支出
A75: 其中：××项目 …………
A76: 16.住房保障支出
A77: 其中：××项目 …………
A78: 17.粮油物资储备支出
A79: 其中：××项目 …………
A80: 18.灾害防治及应急管理支出
A81: 其中：××项目 …………
A82: 19.其他支出
A83: 其中：××项目 …………
A84: 合计
A85: 备注：本区所辖乡镇作为一级预算部门管理，未单独编制政府决算，因此无一般公共预算转移支付决算数据。

Sheet 附表4-9
A1: 附表4-9
A2: 2024年度本级一般公共预算“三公”经费支出决算情况表
B3: 单位：万元
A4: 项目 | B4: 统计数
A5: 一、支出合计 | B5: 268
A6: 1．因公出国（境）费 | B6: 47
A7: 2．公务用车购置及运行维护费 | B7: 134
A8: （1）公务用车购置费 | B8: 40
A9: （2）公务用车运行维护费 | B9: 94
A10: 3．公务接待费 | B10: 87
A11: （1）国内接待费 | B11: 87
A12: 其中：外事接待费
A13: （2）国（境）外接待费
A14: 二、相关统计数
A15: 1．因公出国（境）团组数（个） | B15: 15
A16: 2．因公出国（境）人次数（人） | B16: 17
A17: 3．公务用车购置数（辆） | B17: 2
A18: 4．公务用车保有量（辆） | B18: 109
A19: 5．国内公务接待批次（个） | B19: 338
A20: 其中：外事接待批次（个）
A21: 6．国内公务接待人次（人） | B21: 4882
A22: 其中：外事接待人次（人）
A23: 7．国（境）外公务接待批次（个）
A24: 8．国（境）外公务接待人次（人）
A25: 备注：
A26: 1.按照党中央、国务院有关文件及部门预算管理有关规定，“三公”经费包括因公出国（境）费、公务用车购置及运行费和公务接待费。（1）因公出国（境）费，指单位工作人员公务出国（境）的国际旅费、国外城市间交通费、住宿费、伙食费、培训费、公杂费等支出。（2）公务用车购置及运行费，指单位公务用车购置费(含车辆购置税、牌照费)及燃料费、维修费、过桥过路费、保险费、安全奖励费用等支出，公务用车指车改后单位按规定保留的用于履行公务的机动车辆，包括领导干部用车、一般公务用车和执法执勤用车等。（3）公务接待费，指单位按规定开支的各类公务接待（含外宾接待）费用。
A27: 2.经汇总，鲤城区本级2024年度使用一般公共预算拨款安排的“三公”经费决算数为268万元，比上年决算数减少96万元，下降26.4%。其中，因公出国（境）经费47万元，比上年决算数增加15万元，增长46.9%。公务接待费87万元，比上年决算数增加16万元，增长22.5%。公务用车购置经费40万元，比上年决算数减少26万元，下降39.4%。公务用车运行经费94万元，比上年决算数减少100万元，下降51.5%。“三公”经费决算下降的主要原因是：减少公务用车购置及运行维护费。

Sheet 附表4-10
A1: 附表4-10
A2: 2024年度政府性基金预算收入决算表
E3: 单位：万元
A4: 项目 | B4: 调整预算数 | C4: 决算数 | D4: 决算数为预算数的% | E4: 决算数为上年决算数的%
A5: 一、非税收入 | B5: 0 | C5: 0 | D5: —— | E5: ——
A6: （一）政府性基金收入 | B6: 0 | C6: 0 | D6: —— | E6: ——
A7: 1.国家电影事业发展专项资金收入 | B7: 0 | C7: 0 | D7: —— | E7: ——
A8: 2.国有土地收益基金收入 | B8: 0 | C8: 0 | D8: —— | E8: ——
A9: 3.农业土地开发资金收入 | B9: 0 | C9: 0 | D9: —— | E9: ——
A10: 4.国有土地使用权出让收入 | B10: 0 | C10: 0 | D10: —— | E10: ——
A11: 5.大中型水库库区基金收入 | B11: 0 | C11: 0 | D11: —— | E11: ——
A12: 6.彩票公益金收入 | B12: 0 | C12: 0 | D12: —— | E12: ——
A13: 7.城市基础设施配套费收入 | B13: 0 | C13: 0 | D13: —— | E13: ——
A14: 8.小型水库移民扶助基金收入 | B14: 0 | C14: 0 | D14: —— | E14: ——
A15: 9.国家重大水利工程建设基金收入 | B15: 0 | C15: 0 | D15: —— | E15: ——
A16: 10.污水处理费收入 | B16: 0 | C16: 0 | D16: —— | E16: ——
A17: 11.彩票发行机构和彩票销售机构的业务费用 | B17: 0 | C17: 0 | D17: —— | E17: ——
A18: 12.其他政府性基金收入 | B18: 0 | C18: 0 | D18: —— | E18: ——
A19: （二）专项债务对应项目专项收入 | B19: 0 | C19: 0 | D19: —— | E19: ——
A20: 收入小计 | B20: 0 | C20: 0 | D20: —— | E20: ——
A21: 二、债务收入 | B21: 214777 | C21: 243615 | D21: =C21/B21 -> 113.4% | E21: 1441.5%
A22: 三、转移性收入 | B22: 327769 | C22: 328538 | D22: =C22/B22 -> 100.2% | E22: 101.7%
A23: 上级补助收入 | B23: 224847 | C23: 225312 | D23: =C23/B23 -> 100.2% | E23: 93.2%
A24: 待偿债置换专项债券上年结余 | B24: 0 | C24: 0 | D24: —— | E24: ——
A25: 上年结余 | B25: 86937 | C25: 86937 | D25: =C25/B25 -> 100.0% | E25: 164.9%
A26: 调入资金 | B26: 15985 | C26: 16289 | D26: =C26/B26 -> 101.9% | E26: 56.7%
A27: 收入合计 | B27: 542546 | C27: 572153 | D27: =C27/B27 -> 105.5% | E27: 168.2%

Sheet 附表4-11
A1: 附表4-11
A2: 2024年度政府性基金预算支出决算表
E3: 单位：万元
A4: 项目 | B4: 调整预算数 | C4: 决算数 | D4: 决算数为预算数的% | E4: 决算数为上年决算数的%
A5: 一、科学技术支出 | B5: 0 | C5: 0 | D5: —— | E5: ——
A6: 二、文化旅游体育与传媒支出 | B6: 19 | C6: 19 | D6: 100.0% | E6: 633.3%
A7: 三、社会保障和就业支出 | B7: 0 | C7: 0 | D7: —— | E7: 0.0%
A8: 四、节能环保支出 | B8: 0 | C8: 0 | D8: —— | E8: ——
A9: 五、城乡社区支出 | B9: 241296 | C9: 133507 | D9: 55.3% | E9: 150.1%
A10: 六、农林水支出 | B10: 147 | C10: 140 | D10: 95.2% | E10: 280.0%
A11: 七、交通运输支出 | B11: 0 | C11: 0 | D11: —— | E11: ——
A12: 八、资源勘探工业信息等支出 | B12: 0 | C12: 0 | D12: —— | E12: ——
A13: 九、金融支出 | B13: 0 | C13: 0 | D13: —— | E13: ——
A14: 十、其他支出 | B14: 207035 | C14: 201588 | D14: 97.4% | E14: 1332.8%
A15: 十一、债务付息支出 | B15: 15802 | C15: 15802 | D15: 100.0% | E15: 101.5%
A16: 十二、债务发行费用支出 | B16: 206 | C16: 206 | D16: 100.0% | E16: 1373.3%
A17: 十三、抗疫特别国债安排的支出 | B17: 0 | C17: 0 | D17: —— | E17: ——
A18: 支出小计 | B18: 464505 | C18: 351262 | D18: =C18/B18 -> 75.6% | E18: 293.5%
A19: 债务还本支出 | B19: 23148 | C19: 51986 | D19: =C19/B19 -> 224.6% | E19: 2166.1%
A20: 转移性支出 | B20: 54893 | C20: 168905 | D20: =C20/B20 -> 307.7% | E20: 77.5%
A21: 上解支出 | B21: 0 | C21: 769 | D21: —— | E21: ——
A22: 调出资金 | B22: 54893 | C22: 54893 | D22: 100.0% | E22: 41.9%
A23: 待偿债置换专项债券结余 | B23: 0 | C23: 0 | D23: —— | E23: ——
A24: 年终结余 | B24: 0 | C24: 113243 | D24: —— | E24: 130.3%
A25: 支出合计 | B25: 542546 | C25: 572153 | D25: =C25/B25 -> 105.5% | E25: 168.2%

Sheet 附表4-12
A1: 附表4-12
A2: 2024年度本级政府性基金预算收入决算表
E3: 单位：万元
A4: 项目 | B4: 调整预算数 | C4: 决算数 | D4: 决算数为预算数的% | E4: 决算数为上年决算数的%
A5: 一、非税收入 | B5: 0 | C5: 0 | D5: —— | E5: ——
A6: （一）政府性基金收入 | B6: 0 | C6: 0 | D6: —— | E6: ——
A7: 1.国家电影事业发展专项资金收入 | B7: 0 | C7: 0 | D7: —— | E7: ——
A8: 2.国有土地收益基金收入 | B8: 0 | C8: 0 | D8: —— | E8: ——
A9: 3.农业土地开发资金收入 | B9: 0 | C9: 0 | D9: —— | E9: ——
A10: 4.国有土地使用权出让收入 | B10: 0 | C10: 0 | D10: —— | E10: ——
A11: 5.大中型水库库区基金收入 | B11: 0 | C11: 0 | D11: —— | E11: ——
A12: 6.彩票公益金收入 | B12: 0 | C12: 0 | D12: —— | E12: ——
A13: 7.城市基础设施配套费收入 | B13: 0 | C13: 0 | D13: —— | E13: ——
A14: 8.小型水库移民扶助基金收入 | B14: 0 | C14: 0 | D14: —— | E14: ——
A15: 9.国家重大水利工程建设基金收入 | B15: 0 | C15: 0 | D15: —— | E15: ——
A16: 10.污水处理费收入 | B16: 0 | C16: 0 | D16: —— | E16: ——
A17: 11.彩票发行机构和彩票销售机构的业务费用 | B17: 0 | C17: 0 | D17: —— | E17: ——
A18: 12.其他政府性基金收入 | B18: 0 | C18: 0 | D18: —— | E18: ——
A19: （二）专项债务对应项目专项收入 | B19: 0 | C19: 0 | D19: —— | E19: ——
A20: 收入小计 | B20: 0 | C20: 0 | D20: —— | E20: ——
A21: 二、债务收入 | B21: 214777 | C21: 243615 | D21: =C21/B21 -> 113.4% | E21: 1441.5%
A22: 三、转移性收入 | B22: 327769 | C22: 328538 | D22: =C22/B22 -> 100.2% | E22: 101.7%
A23: 上级补助收入 | B23: 224847 | C23: 225312 | D23: =C23/B23 -> 100.2% | E23: 93.2%
A24: 待偿债置换专项债券上年结余 | B24: 0 | C24: 0 | D24: —— | E24: ——
A25: 上年结余 | B25: 86937 | C25: 86937 | D25: 100.0% | E25: 164.9%
A26: 调入资金 | B26: 15985 | C26: 16289 | D26: =C26/B26 -> 101.9% | E26: 56.7%
A27: 收入合计 | B27: 542546 | C27: 572153 | D27: =C27/B27 -> 105.5% | E27: 168.2%

Sheet 附表4-13
B1: 附表4-13
B2: 2024年度本级政府性基金预算支出决算表
F3: 单位：万元
A4: 科目代码 | B4: 项目 | C4: 调整预算数 | D4: 决算数 | E4: 决算数为预算数的% | F4: 决算数为上年决算数的%
A5: 206 | B5: 科学技术支出 | C5: 0 | D5: 0 | E5: —— | F5: ——
A6: 20610 | B6: 核电站乏燃料处理处置基金支出 | C6: 0 | D6: 0 | E6: —— | F6: ——
A7: 2061001 | B7: 乏燃料运输 | C7: 0 | D7: 0 | E7: —— | F7: ——
A8: 2061002 | B8: 乏燃料离堆贮存 | C8: 0 | D8: 0 | E8: —— | F8: ——
A9: 2061003 | B9: 乏燃料后处理 | C9: 0 | D9: 0 | E9: —— | F9: ——
A10: 2061004 | B10: 高放废物的处理处置 | C10: 0 | D10: 0 | E10: —— | F10: ——
A11: 2061005 | B11: 乏燃料后处理厂的建设、运行、改造和退役 | C11: 0 | D11: 0 | E11: —— | F11: ——
A12: 2061099 | B12: 其他乏燃料处理处置基金支出 | C12: 0 | D12: 0 | E12: —— | F12: ——
A13: 207 | B13: 文化旅游体育与传媒支出 | C13: 19 | D13: 19 | E13: 100.0% | F13: 633.3%
A14: 20707 | B14: 国家电影事业发展专项资金安排的支出 | C14: 19 | D14: 19 | E14: 100.0% | F14: 633.3%
A15: 2070701 | B15: 资助国产影片放映 | C15: 0 | D15: 0 | E15: —— | F15: ——
A16: 2070702 | B16: 资助影院建设 | C16: 0 | D16: 0 | E16: —— | F16: ——
A17: 2070703 | B17: 资助少数民族语电影译制 | C17: 0 | D17: 0 | E17: —— | F17: ——
A18: 2070704 | B18: 购买农村电影公益性放映版权服务 | C18: 0 | D18: 0 | E18: —— | F18: ——
A19: 2070799 | B19: 其他国家电影事业发展专项资金支出 | C19: 0 | D19: 19 | E19: —— | F19: 633.3%
A20: 20709 | B20: 旅游发展基金支出 | C20: 0 | D20: 0 | E20: —— | F20: ——
A21: 2070901 | B21: 宣传促销 | C21: 0 | D21: 0 | E21: —— | F21: ——
A22: 2070902 | B22: 行业规划 | C22: 0 | D22: 0 | E22: —— | F22: ——
A23: 2070903 | B23: 旅游事业补助 | C23: 0 | D23: 0 | E23: —— | F23: ——
A24: 2070904 | B24: 地方旅游开发项目补助 | C24: 0 | D24: 0 | E24: —— | F24: ——
A25: 2070999 | B25: 其他旅游发展基金支出 | C25: 0 | D25: 0 | E25: —— | F25: ——
A26: 20710 | B26: 国家电影事业发展专项资金对应专项债务收入安排的支出 | C26: 0 | D26: 0 | E26: —— | F26: ——
A27: 2071001 | B27: 资助城市影院 | C27: 0 | D27: 0 | E27: —— | F27: ——
A28: 2071099 | B28: 其他国家电影事业发展专项资金对应专项债务收入支出 | C28: 0 | D28: 0 | E28: —— | F28: ——
A29: 208 | B29: 社会保障和就业支出 | C29: 0 | D29: 0 | E29: —— | F29: 0.0%
A30: 20822 | B30: 大中型水库移民后期扶持基金支出 | C30: 0 | D30: 0 | E30: —— | F30: 0.0%
A31: 2082201 | B31: 移民补助 | C31: 0 | D31: 0 | E31: —— | F31: 0.0%
A32: 2082202 | B32: 基础设施建设和经济发展 | C32: 0 | D32: 0 | E32: —— | F32: ——
A33: 2082299 | B33: 其他大中型水库移民后期扶持基金支出 | C33: 0 | D33: 0 | E33: —— | F33: ——
A34: 20823 | B34: 小型水库移民扶助基金安排的支出 | C34: 0 | D34: 0 | E34: —— | F34: ——
A35: 2082301 | B35: 移民补助 | C35: 0 | D35: 0 | E35: —— | F35: ——
A36: 2082302 | B36: 基础设施建设和经济发展 | C36: 0 | D36: 0 | E36: —— | F36: ——
A37: 2082399 | B37: 其他小型水库移民扶助基金支出 | C37: 0 | D37: 0 | E37: —— | F37: ——
A38: 20829 | B38: 小型水库移民扶助基金对应专项债务收入安排的支出 | C38: 0 | D38: 0 | E38: —— | F38: ——
A39: 2082901 | B39: 基础设施建设和经济发展 | C39: 0 | D39: 0 | E39: —— | F39: ——
A40: 2082999 | B40: 其他小型水库移民扶助基金对应专项债务收入安排的支出 | C40: 0 | D40: 0 | E40: —— | F40: ——
A41: 211 | B41: 节能环保支出 | C41: 0 | D41: 0 | E41: —— | F41: ——
A42: 21160 | B42: 可再生能源电价附加收入安排的支出 | C42: 0 | D42: 0 | E42: —— | F42: ——
A43: 2116001 | B43: 风力发电补助 | C43: 0 | D43: 0 | E43: —— | F43: ——
A44: 2116002 | B44: 太阳能发电补助 | C44: 0 | D44: 0 | E44: —— | F44: ——
A45: 2116003 | B45: 生物质能发电补助 | C45: 0 | D45: 0 | E45: —— | F45: ——
A46: 2116099 | B46: 其他可再生能源电价附加收入安排的支出 | C46: 0 | D46: 0 | E46: —— | F46: ——
A47: 21161 | B47: 废弃电器电子产品处理基金支出 | C47: 0 | D47: 0 | E47: —— | F47: ——
A48: 2116101 | B48: 回收处理费用补贴 | C48: 0 | D48: 0 | E48: —— | F48: ——
A49: 2116102 | B49: 信息系统建设 | C49: 0 | D49: 0 | E49: —— | F49: ——
A50: 2116103 | B50: 基金征管经费 | C50: 0 | D50: 0 | E50: —— | F50: ——
A51: 2116104 | B51: 其他废弃电器电子产品处理基金支出 | C51: 0 | D51: 0 | E51: —— | F51: ——
A52: 212 | B52: 城乡社区支出 | C52: 241296 | D52: 133507 | E52: 55.3% | F52: 150.1%
A53: 21208 | B53: 国有土地使用权出让收入安排的支出 | C53: 199706 | D53: 131625 | E53: 65.9% | F53: 149.4%
A54: 2120801 | B54: 征地和拆迁补偿支出 | C54: 0 | D54: 127766 | E54: —— | F54: 149.6%
A55: 2120802 | B55: 土地开发支出 | C55: 0 | D55: 0 | E55: —— | F55: ——
A56: 2120803 | B56: 城市建设支出 | C56: 0 | D56: 0 | E56: —— | F56: 0.0%
A57: 2120804 | B57: 农村基础设施建设支出 | C57: 0 | D57: 0 | E57: —— | F57: ——
A58: 2120805 | B58: 补助被征地农民支出 | C58: 0 | D58: 3164 | E58: —— | F58: 139.1%
A59: 2120806 | B59: 土地出让业务支出 | C59: 0 | D59: 0 | E59: —— | F59: ——
A60: 2120807 | B60: 廉租住房支出 | C60: 0 | D60: 0 | E60: —— | F60: ——
A61: 2120809 | B61: 支付破产或改制企业职工安置费 | C61: 0 | D61: 0 | E61: —— | F61: ——
A62: 2120810 | B62: 棚户区改造支出 | C62: 0 | D62: 477 | E62: —— | F62: 247.2%
A63: 2120811 | B63: 公共租赁住房支出 | C63: 0 | D63: 0 | E63: —— | F63: ——
A64: 2120813 | B64: 保障性住房租金补贴 | C64: 0 | D64: 0 | E64: —— | F64: ——
A65: 2120814 | B65: 农业生产发展支出 | C65: 0 | D65: 0 | E65: —— | F65: ——
A66: 2120815 | B66: 农村社会事业支出 | C66: 0 | D66: 0 | E66: —— | F66: ——
A67: 2120816 | B67: 农业农村生态环境支出 | C67: 0 | D67: 0 | E67: —— | F67: ——
A68: 2120899 | B68: 其他国有土地使用权出让收入安排的支出 | C68: 0 | D68: 218 | E68: —— | F68: 200.0%
A69: 21210 | B69: 国有土地收益基金安排的支出 | C69: 0 | D69: 0 | E69: —— | F69: ——
A70: 2121001 | B70: 征地和拆迁补偿支出 | C70: 0 | D70: 0 | E70: —— | F70: ——
A71: 2121002 | B71: 土地开发支出 | C71: 0 | D71: 0 | E71: —— | F71: ——
A72: 2121099 | B72: 其他国有土地收益基金支出 | C72: 0 | D72: 0 | E72: —— | F72: ——
A73: 21211 | B73: 农业土地开发资金安排的支出 | C73: 0 | D73: 0 | E73: —— | F73: ——
A74: 21213 | B74: 城市基础设施配套费安排的支出 | C74: 23784 | D74: 1880 | E74: 7.9% | F74: 222.2%
A75: 2121301 | B75: 城市公共设施 | C75: 0 | D75: 0 | E75: —— | F75: ——
A76: 2121302 | B76: 城市环境卫生 | C76: 0 | D76: 0 | E76: —— | F76: ——
A77: 2121303 | B77: 公有房屋 | C77: 0 | D77: 0 | E77: —— | F77: ——
A78: 2121304 | B78: 城市防洪 | C78: 0 | D78: 0 | E78: —— | F78: ——
A79: 2121399 | B79: 其他城市基础设施配套费安排的支出 | C79: 0 | D79: 1880 | E79: —— | F79: 222.2%
A80: 21214 | B80: 污水处理费安排的支出 | C80: 6 | D80: 2 | E80: 33.3% | F80: ——
A81: 2121401 | B81: 污水处理设施建设和运营 | C81: 0 | D81: 0 | E81: —— | F81: ——
A82: 2121402 | B82: 代征手续费 | C82: 0 | D82: 0 | E82: —— | F82: ——
A83: 2121499 | B83: 其他污水处理费安排的支出 | C83: 0 | D83: 2 | E83: —— | F83: ——
A84: 21215 | B84: 土地储备专项债券收入安排的支出 | C84: 0 | D84: 0 | E84: —— | F84: ——
A85: 2121501 | B85: 征地和拆迁补偿支出 | C85: 0 | D85: 0 | E85: —— | F85: ——
A86: 2121502 | B86: 土地开发支出 | C86: 0 | D86: 0 | E86: —— | F86: ——
A87: 2121599 | B87: 其他土地储备专项债券收入安排的支出 | C87: 0 | D87: 0 | E87: —— | F87: ——
A88: 21216 | B88: 棚户区改造专项债券收入安排的支出 | C88: 0 | D88: 0 | E88: —— | F88: ——
A89: 2121601 | B89: 征地和拆迁补偿支出 | C89: 0 | D89: 0 | E89: —— | F89: ——
A90: 2121602 | B90: 土地开发支出 | C90: 0 | D90: 0 | E90: —— | F90: ——
A91: 2121699 | B91: 其他棚户区改造专项债券收入安排的支出 | C91: 0 | D91: 0 | E91: —— | F91: ——
A92: 21217 | B92: 城市基础设施配套费对应专项债务收入安排的支出 | C92: 0 | D92: 0 | E92: —— | F92: ——
A93: 2121701 | B93: 城市公共设施 | C93: 0 | D93: 0 | E93: —— | F93: ——
A94: 2121702 | B94: 城市环境卫生 | C94: 0 | D94: 0 | E94: —— | F94: ——
A95: 2121703 | B95: 公有房屋 | C95: 0 | D95: 0 | E95: —— | F95: ——
A96: 2121704 | B96: 城市防洪 | C96: 0 | D96: 0 | E96: —— | F96: ——
A97: 2121799 | B97: 其他城市基础设施配套费对应专项债务收入安排的支出 | C97: 0 | D97: 0 | E97: —— | F97: ——
A98: 21218 | B98: 污水处理费对应专项债务收入安排的支出 | C98: 0 | D98: 0 | E98: —— | F98: ——
A99: 2121801 | B99: 污水处理设施建设和运营 | C99: 0 | D99: 0 | E99: —— | F99: ——
A100: 2121899 | B100: 其他污水处理费对应专项债务收入安排的支出 | C100: 0 | D100: 0 | E100: —— | F100: ——
A101: 21219 | B101: 国有土地使用权出让收入对应专项债务收入安排的支出 | C101: 0 | D101: 0 | E101: —— | F101: ——
A102: 2121901 | B102: 征地和拆迁补偿支出 | C102: 0 | D102: 0 | E102: —— | F102: ——
A103: 2121902 | B103: 土地开发支出 | C103: 0 | D103: 0 | E103: —— | F103: ——
A104: 2121903 | B104: 城市建设支出 | C104: 0 | D104: 0 | E104: —— | F104: ——
A105: 2121904 | B105: 农村基础设施建设支出 | C105: 0 | D105: 0 | E105: —— | F105: ——
A106: 2121905 | B106: 廉租住房支出 | C106: 0 | D106: 0 | E106: —— | F106: ——
A107: 2121906 | B107: 棚户区改造支出 | C107: 0 | D107: 0 | E107: —— | F107: ——
A108: 2121907 | B108: 公共租赁住房支出 | C108: 0 | D108: 0 | E108: —— | F108: ——
A109: 2121999 | B109: 其他国有土地使用权出让收入对应专项债务收入安排的支出 | C109: 0 | D109: 0 | E109: —— | F109: ——
A110: 213 | B110: 农林水支出 | C110: 147 | D110: 140 | E110: 95.2% | F110: 280.0%
A111: 21366 | B111: 大中型水库库区基金安排的支出 | C111: 7 | D111: 0 | E111: 0.0% | F111: ——
A112: 2136601 | B112: 基础设施建设和经济发展 | C112: 0 | D112: 0 | E112: —— | F112: ——
A113: 2136602 | B113: 解决移民遗留问题 | C113: 0 | D113: 0 | E113: —— | F113: ——
A114: 2136603 | B114: 库区防护工程维护 | C114: 0 | D114: 0 | E114: —— | F114: ——
A115: 2136699 | B115: 其他大中型水库库区基金支出 | C115: 0 | D115: 0 | E115: —— | F115: ——
A116: 21367 | B116: 三峡水库库区基金支出 | C116: 0 | D116: 0 | E116: —— | F116: ——
A117: 2136701 | B117: 基础设施建设和经济发展 | C117: 0 | D117: 0 | E117: —— | F117: ——
A118: 2136702 | B118: 解决移民遗留问题 | C118: 0 | D118: 0 | E118: —— | F118: ——
A119: 2136703 | B119: 库区维护和管理 | C119: 0 | D119: 0 | E119: —— | F119: ——
A120: 2136799 | B120: 其他三峡水库库区基金支出 | C120: 0 | D120: 0 | E120: —— | F120: ——
A121: 21369 | B121: 国家重大水利工程建设基金安排的支出 | C121: 88 | D121: 88 | E121: 100.0% | F121: 176.0%
A122: 2136901 | B122: 南水北调工程建设 | C122: 0 | D122: 0 | E122: —— | F122: ——
A123: 2136902 | B123: 三峡后续工作 | C123: 0 | D123: 88 | E123: —— | F123: 176.0%
A124: 2136903 | B124: 地方重大水利工程建设 | C124: 0 | D124: 0 | E124: —— | F124: ——
A125: 2136999 | B125: 其他重大水利工程建设基金支出 | C125: 0 | D125: 0 | E125: —— | F125: ——
A126: 21370 | B126: 大中型水库库区基金对应专项债务收入安排的支出 | C126: 0 | D126: 0 | E126: —— | F126: ——
A127: 2137001 | B127: 基础设施建设和经济发展 | C127: 0 | D127: 0 | E127: —— | F127: ——
A128: 2137099 | B128: 其他大中型水库库区基金对应专项债务收入支出 | C128: 0 | D128: 0 | E128: —— | F128: ——
A129: 21371 | B129: 国家重大水利工程建设基金对应专项债务收入安排的支出 | C129: 0 | D129: 0 | E129: —— | F129: ——
A130: 2137101 | B130: 南水北调工程建设 | C130: 0 | D130: 0 | E130: —— | F130: ——
A131: 2137102 | B131: 三峡工程后续工作 | C131: 0 | D131: 0 | E131: —— | F131: ——
A132: 2137103 | B132: 地方重大水利工程建设 | C132: 0 | D132: 0 | E132: —— | F132: ——
A133: 2137199 | B133: 其他重大水利工程建设基金对应专项债务收入支出 | C133: 0 | D133: 0 | E133: —— | F133: ——
A134: 214 | B134: 交通运输支出 | C134: 0 | D134: 0 | E134: —— | F134: ——
A135: 21460 | B135: 海南省高等级公路车辆通行附加费安排的支出 | C135: 0 | D135: 0 | E135: —— | F135: ——
A136: 2146001 | B136: 公路建设 | C136: 0 | D136: 0 | E136: —— | F136: ——
A137: 2146002 | B137: 公路养护 | C137: 0 | D137: 0 | E137: —— | F137: ——
A138: 2146003 | B138: 公路还贷 | C138: 0 | D138: 0 | E138: —— | F138: ——
A139: 2146099 | B139: 其他海南省高等级公路车辆通行附加费安排的支出 | C139: 0 | D139: 0 | E139: —— | F139: ——
A140: 21462 | B140: 车辆通行费安排的支出 | C140: 0 | D140: 0 | E140: —— | F140: ——
A141: 2146201 | B141: 公路还贷 | C141: 0 | D141: 0 | E141: —— | F141: ——
A142: 2146202 | B142: 政府还贷公路养护 | C142: 0 | D142: 0 | E142: —— | F142: ——
A143: 2146203 | B143: 政府还贷公路管理 | C143: 0 | D143: 0 | E143: —— | F143: ——
A144: 2146299 | B144: 其他车辆通行费安排的支出 | C144: 0 | D144: 0 | E144: —— | F144: ——
A145: 21463 | B145: 港口建设费安排的支出 | C145: 0 | D145: 0 | E145: —— | F145: ——
A146: 2146301 | B146: 港口设施 | C146: 0 | D146: 0 | E146: —— | F146: ——
A147: 2146302 | B147: 航道建设和维护 | C147: 0 | D147: 0 | E147: —— | F147: ——
A148: 2146303 | B148: 航运保障系统建设 | C148: 0 | D148: 0 | E148: —— | F148: ——
A149: 2146399 | B149: 其他港口建设费安排的支出 | C149: 0 | D149: 0 | E149: —— | F149: ——
A150: 21464 | B150: 铁路建设基金支出 | C150: 0 | D150: 0 | E150: —— | F150: ——
A151: 2146401 | B151: 铁路建设投资 | C151: 0 | D151: 0 | E151: —— | F151: ——
A152: 2146402 | B152: 购置铁路机车车辆 | C152: 0 | D152: 0 | E152: —— | F152: ——
A153: 2146403 | B153: 铁路还贷 | C153: 0 | D153: 0 | E153: —— | F153: ——
A154: 2146404 | B154: 建设项目铺底资金 | C154: 0 | D154: 0 | E154: —— | F154: ——
A155: 2146405 | B155: 勘测设计 | C155: 0 | D155: 0 | E155: —— | F155: ——
A156: 2146406 | B156: 注册资本金 | C156: 0 | D156: 0 | E156: —— | F156: ——
A157: 2146407 | B157: 周转资金 | C157: 0 | D157: 0 | E157: —— | F157: ——
A158: 2146499 | B158: 其他铁路建设基金支出 | C158: 0 | D158: 0 | E158: —— | F158: ——
A159: 21468 | B159: 船舶油污损害赔偿基金支出 | C159: 0 | D159: 0 | E159: —— | F159: ——
A160: 2146801 | B160: 应急处置费用 | C160: 0 | D160: 0 | E160: —— | F160: ——
A161: 2146802 | B161: 控制清除污染 | C161: 0 | D161: 0 | E161: —— | F161: ——
A162: 2146803 | B162: 损失补偿 | C162: 0 | D162: 0 | E162: —— | F162: ——
A163: 2146804 | B163: 生态恢复 | C163: 0 | D163: 0 | E163: —— | F163: ——
A164: 2146805 | B164: 监视监测 | C164: 0 | D164: 0 | E164: —— | F164: ——
A165: 2146899 | B165: 其他船舶油污损害赔偿基金支出 | C165: 0 | D165: 0 | E165: —— | F165: ——
A166: 21469 | B166: 民航发展基金支出 | C166: 0 | D166: 0 | E166: —— | F166: ——
A167: 2146901 | B167: 民航机场建设 | C167: 0 | D167: 0 | E167: —— | F167: ——
A168: 2146902 | B168: 空管系统建设 | C168: 0 | D168: 0 | E168: —— | F168: ——
A169: 2146903 | B169: 民航安全 | C169: 0 | D169: 0 | E169: —— | F169: ——
A170: 2146904 | B170: 航线和机场补贴 | C170: 0 | D170: 0 | E170: —— | F170: ——
A171: 2146906 | B171: 民航节能减排 | C171: 0 | D171: 0 | E171: —— | F171: ——
A172: 2146907 | B172: 通用航空发展 | C172: 0 | D172: 0 | E172: —— | F172: ——
A173: 2146908 | B173: 征管经费 | C173: 0 | D173: 0 | E173: —— | F173: ——
A174: 2146909 | B174: 民航科教和信息建设 | C174: 0 | D174: 0 | E174: —— | F174: ——
A175: 2146999 | B175: 其他民航发展基金支出 | C175: 0 | D175: 0 | E175: —— | F175: ——
A176: 21470 | B176: 海南省高等级公路车辆通行附加费对应专项债务收入安排的支出 | C176: 0 | D176: 0 | E176: —— | F176: ——
A177: 2147001 | B177: 公路建设 | C177: 0 | D177: 0 | E177: —— | F177: ——
A178: 2147099 | B178: 其他海南省高等级公路车辆通行附加费对应专项债务收入安排的支出 | C178: 0 | D178: 0 | E178: —— | F178: ——
A179: 21471 | B179: 政府收费公路专项债券收入安排的支出 | C179: 0 | D179: 0 | E179: —— | F179: ——
A180: 2147101 | B180: 公路建设 | C180: 0 | D180: 0 | E180: —— | F180: ——
A181: 2147199 | B181: 其他政府收费公路专项债券收入安排的支出 | C181: 0 | D181: 0 | E181: —— | F181: ——
A182: 21472 | B182: 车辆通行费对应专项债务收入安排的支出 | C182: 0 | D182: 0 | E182: —— | F182: ——
A183: 215 | B183: 资源勘探工业信息等支出 | C183: 0 | D183: 0 | E183: —— | F183: ——
A184: 21562 | B184: 农网还贷资金支出 | C184: 0 | D184: 0 | E184: —— | F184: ——
A185: 2156201 | B185: 中央农网还贷资金支出 | C185: 0 | D185: 0 | E185: —— | F185: ——
A186: 2156202 | B186: 地方农网还贷资金支出 | C186: 0 | D186: 0 | E186: —— | F186: ——
A187: 2156299 | B187: 其他农网还贷资金支出 | C187: 0 | D187: 0 | E187: —— | F187: ——
A188: 217 | B188: 金融支出 | C188: 0 | D188: 0 | E188: —— | F188: ——
A189: 21704 | B189: 金融调控支出 | C189: 0 | D189: 0 | E189: —— | F189: ——
A190: 2170402 | B190: 中央特别国债经营基金支出 | C190: 0 | D190: 0 | E190: —— | F190: ——
A191: 2170403 | B191: 中央特别国债经营基金财务支出 | C191: 0 | D191: 0 | E191: —— | F191: ——
A192: 229 | B192: 其他支出 | C192: 207035 | D192: 201588 | E192: 97.4% | F192: 1332.8%
A193: 22904 | B193: 其他政府性基金及对应专项债务收入安排的支出 | C193: 203036 | D193: 200629 | E193: 98.8% | F193: 1383.6%
A194: 2290401 | B194: 其他政府性基金安排的支出 | C194: 0 | D194: 0 | E194: —— | F194: ——
A195: 2290402 | B195: 其他地方自行试点项目收益专项债券收入安排的支出 | C195: 0 | D195: 200629 | E195: —— | F195: 1383.6%
A196: 2290403 | B196: 其他政府性基金债务收入安排的支出 | C196: 0 | D196: 0 | E196: —— | F196: ——
A197: 22908 | B197: 彩票发行销售机构业务费安排的支出 | C197: 0 | D197: 0 | E197: —— | F197: ——
A198: 2290802 | B198: 福利彩票发行机构的业务费支出 | C198: 0 | D198: 0 | E198: —— | F198: ——
A199: 2290803 | B199: 体育彩票发行机构的业务费支出 | C199: 0 | D199: 0 | E199: —— | F199: ——
A200: 2290804 | B200: 福利彩票销售机构的业务费支出 | C200: 0 | D200: 0 | E200: —— | F200: ——
... 84 more rows

Sheet 附表4-14
A1: 附表4-14
A2: 2024年度本级政府性基金预算转移支付决算表
L3: 单位：万元
A4: 地区 | B4: 小计 | C4: 抗疫特别国债转移支付支出 | D4: 科学技术支出 | E4: 文化旅游体育与传媒支出 | F4: 社会保障和就业支出 | G4: 节能环保支出 | H4: 城乡社区支出 | I4: 农林水支出 | J4: 交通运输支出 | K4: 资源勘探工业信息等支出 | L4: 其他支出
A5: ××地区
A6: ××地区
A7: ××地区
A8: ××地区
A9: ××地区
A10: ××地区
A11: ××地区
A12: ××地区
A13: ××地区
A14: ××地区
A15: 合计
A17: 备注：本区所辖乡镇作为一级预算部门管理，未单独编制政府决算，因此无政府性基金预算转移支付决算数据。

Sheet 附表4-15
A1: 附表4-15
A2: 2024年度国有资本经营预算收入决算表
E3: 单位：万元
A4: 项目 | B4: 调整预算数 | C4: 决算数 | D4: 决算数为预算数的% | E4: 决算数为上年决算数的%
A5: 一、利润收入 | B5: 23318 | C5: 23318 | D5: 100.0% | E5: 34291.2%
A6: 二、股利、股息收入 | B6: 0 | C6: 0 | D6: —— | E6: ——
A7: 三、产权转让收入 | B7: 0 | C7: 0 | D7: —— | E7: ——
A8: 四、清算收入 | B8: 0 | C8: 0 | D8: —— | E8: ——
A9: 五、其他国有资本经营预算收入 | B9: 0 | C9: 0 | D9: —— | E9: ——
A10: 收入小计 | B10: 23318 | C10: 23318 | D10: 100.0% | E10: 34291.2%
A11: 上级补助收入 | B11: 19 | C11: 19 | D11: 100.0% | E11: 105.6%
A12: 下级上解收入 | B12: 0 | C12: 0 | D12: —— | E12: ——
A13: 上年结余收入 | B13: 0 | C13: 0 | D13: —— | E13: 0.0%
A14: 收入合计 | B14: 23337 | C14: 23337 | D14: 100.0% | E14: 26824.1%

Sheet 附表4-16
A1: 附表4-16
A2: 2024年度国有资本经营预算支出决算表
E3: 单位：万元
A4: 项目 | B4: 调整预算数 | C4: 决算数 | D4: 决算数为预算数的% | E4: 决算数为上年决算数的%
A5: 一、补充全国社会保障基金 | B5: 0 | C5: 0 | D5: —— | E5: ——
A6: 二、解决历史遗留问题及改革成本支出 | B6: 19 | C6: 19 | D6: 100.0% | E6: 100.0%
A7: 三、国有企业资本金注入 | B7: 4202 | C7: 4202 | D7: 100.0% | E7: ——
A8: 四、国有企业政策性补贴 | B8: 797 | C8: 797 | D8: 100.0% | E8: 1172.1%
A9: 五、其他国有资本经营预算支出 | B9: 0 | C9: 0 | D9: —— | E9: ——
A10: 支出小计 | B10: 5018 | C10: 5018 | D10: 100.0% | E10: 5767.8%
A11: 转移支付支出 | B11: 0 | C11: 0 | D11: —— | E11: ——
A12: 上解支出 | B12: 0 | C12: 0 | D12: —— | E12: ——
A13: 调出资金 | B13: 18319 | C13: 18319 | D13: 100.0% | E13: ——
A14: 年终结余 | B14: 0 | C14: 0 | D14: —— | E14: ——
A15: 支出合计 | B15: 23337 | C15: 23337 | D15: 100.0% | E15: 26824.1%

Sheet 附表4-17
A1: 附表4-17
A2: 2024年度本级国有资本经营预算收入决算表
E3: 单位：万元
A4: 项目 | B4: 调整预算数 | C4: 决算数 | D4: 决算数为预算数的% | E4: 决算数为上年决算数的%
A6: 一、利润收入 | B6: 23318 | C6: 23318 | D6: 100.0% | E6: 34291.2%
A7: 其中：房地产企业利润收入 | B7: 0 | C7: 0 | D7: —— | E7: ——
A8: 其他国有资本经营预算企业利润收入 | B8: 23318 | C8: 23318 | D8: 100.0% | E8: 34291.2%
A9: 二、股利、股息收入 | B9: 0 | C9: 0 | D9: —— | E9: ——
A10: 其中：国有控股公司股利、股息收入 | B10: 0 | C10: 0 | D10: —— | E10: ——
A11: 国有参股公司股利、股息收入 | B11: 0 | C11: 0 | D11: —— | E11: ——
A12: 金融企业股利、股息收入 | B12: 0 | C12: 0 | D12: —— | E12: ——
A13: 其他国有资本经营预算企业股利、股息收入 | B13: 0 | C13: 0 | D13: —— | E13: ——
A14: 三、产权转让收入 | B14: 0 | C14: 0 | D14: —— | E14: ——
A15: 四、清算收入 | B15: 0 | C15: 0 | D15: —— | E15: ——
A16: 五、其他国有资本经营预算收入 | B16: 0 | C16: 0 | D16: —— | E16: ——
A17: 收入小计 | B17: 23318 | C17: 23318 | D17: 100.0% | E17: 34291.2%
A18: 国有资本经营预算转移支付收入 | B18: 19 | C18: 19 | D18: 100.0% | E18: 105.6%
A19: 上年结转收入 | B19: 0 | C19: 0 | D19: —— | E19: 0.0%
A20: 收入合计 | B20: 23337 | C20: 23337 | D20: 100.0% | E20: 26824.1%

Sheet 附表4-18
B1: 附表4-18
B2: 2024年度本级国有资本经营预算支出决算表
F3: 单位：万元
A4: 科目代码 | B4: 项目 | C4: 调整预算数 | D4: 决算数 | E4: 决算数为预算数的％ | F4: 决算数为上年决算数的％
A5: 20804 | B5: 一、补充全国社会保障基金 | C5: 0 | D5: 0 | E5: —— | F5: ——
A6: 2080451 | B6: 国有资本经营预算补充社保基金支出 | C6: 0 | D6: 0 | E6: —— | F6: ——
A7: 22301 | B7: 二、解决历史遗留问题及改革成本支出 | C7: 19 | D7: 19 | E7: 100.0% | F7: 100.0%
A8: 2230101 | B8: 厂办大集体改革支出 | C8: 0 | D8: 0 | E8: —— | F8: ——
A9: 2230102 | B9: “三供一业”移交补助支出 | C9: 0 | D9: 0 | E9: —— | F9: ——
A10: 2230103 | B10: 国有企业办职教幼教补助支出 | C10: 0 | D10: 0 | E10: —— | F10: ——
A11: 2230104 | B11: 国有企业办公共服务机构移交补助支出 | C11: 0 | D11: 0 | E11: —— | F11: ——
A12: 2230105 | B12: 国有企业退休人员社会化管理补助支出 | C12: 19 | D12: 19 | E12: 100.0% | F12: 100.0%
A13: 2230106 | B13: 国有企业棚户区改造支出 | C13: 0 | D13: 0 | E13: —— | F13: ——
A14: 2230107 | B14: 国有企业改革成本支出 | C14: 0 | D14: 0 | E14: —— | F14: ——
A15: 2230108 | B15: 离休干部医药费补助支出 | C15: 0 | D15: 0 | E15: —— | F15: ——
A16: 2230109 | B16: 金融企业改革性支出 | C16: 0 | D16: 0 | E16: —— | F16: ——
A17: 2230199 | B17: 其他解决历史遗留问题及改革成本支出 | C17: 0 | D17: 0 | E17: —— | F17: ——
A18: 22302 | B18: 三、国有企业资本金注入 | C18: 4202 | D18: 4202 | E18: 100.0% | F18: ——
A19: 2230201 | B19: 国有经济结构调整支出 | C19: 0 | D19: 0 | E19: —— | F19: ——
A20: 2230202 | B20: 公益性设施投资支出 | C20: 0 | D20: 0 | E20: —— | F20: ——
A21: 2230203 | B21: 前瞻性战略性产业发展支出 | C21: 0 | D21: 0 | E21: —— | F21: ——
A22: 2230204 | B22: 生态环境保护支出 | C22: 0 | D22: 0 | E22: —— | F22: ——
A23: 2230205 | B23: 支持科技进步支出 | C23: 0 | D23: 0 | E23: —— | F23: ——
A24: 2230206 | B24: 保障国家经济安全支出 | C24: 0 | D24: 0 | E24: —— | F24: ——
A25: 2230208 | B25: 金融企业资本性支出 | C25: 0 | D25: 0 | E25: —— | F25: ——
A26: 2230299 | B26: 其他国有企业资本金注入 | C26: 4202 | D26: 4202 | E26: 100.0% | F26: ——
A27: 22303 | B27: 四、国有企业政策性补贴(款) | C27: 797 | D27: 797 | E27: 100.0% | F27: 1172.1%
A28: 2230301 | B28: 国有企业政策性补贴(项) | C28: 797 | D28: 797 | E28: 100.0% | F28: 1172.1%
A29: 22399 | B29: 五、其他国有资本经营预算支出(款) | C29: 0 | D29: 0 | E29: —— | F29: ——
A30: 2239999 | B30: 其他国有资本经营预算支出(项) | C30: 0 | D30: 0 | E30: —— | F30: ——
B31: 支出小计 | C31: 5018 | D31: 5018 | E31: 100.0% | F31: 5767.8%
A32: 23005 | B32: 转移支付支出 | C32: 0 | D32: 0 | E32: —— | F32: ——
A33: 23006 | B33: 上解支出 | C33: 0 | D33: 0 | E33: —— | F33: ——
A34: 23008 | B34: 调出资金 | C34: 18319 | D34: 18319 | E34: 100.0% | F34: ——
A35: 23009 | B35: 年终结余 | C35: 0 | D35: 0 | E35: —— | F35: ——
B36: 支出合计 | C36: 23337 | D36: 23337 | E36: 100.0% | F36: 26824.1%
B38: 备注：按照财政部有关规定，报表中涉及本级支出的，应当公开到功能分类项级科目。

Sheet 附表4-19
A1: 附表4-19
A2: 2024年度本级国有资本经营预算转移支付决算表
E3: 单位：万元
A4: 地区 | B4: 小计 | C4: ××项目 | D4: ××项目 | E4: ……
A5: ××地区
A6: ××地区
A7: ××地区
A8: ××地区
A9: ××地区
A10: ××地区
A11: ××地区
A12: ××地区
A13: ××地区
A14: ××地区
A15: 合计
A17: 备注：本区所辖乡镇作为一级预算部门管理，未单独编制政府决算，因此无国有资本经营预算转移支付决算数据。

Sheet 附表4-20
A1: 附表4-20
A2: 2024年度社会保险基金预算收入决算表
E3: 单位：万元
A4: 项目 | B4: 预算数 | C4: 决算数 | D4: 决算数为预算数的% | E4: 决算数为上年决算数%
A5: 一、企业职工基本养老保险基金收入 | C5: 0 | D5: —— | E5: ——
A6: 二、失业保险基金收入 | C6: 0 | D6: —— | E6: ——
A7: 三、职工基本医疗保险基金收入 | C7: 0 | D7: —— | E7: ——
A8: 四、工伤保险基金收入 | C8: 0 | D8: —— | E8: ——
A9: 五、城乡居民基本养老保险基金收入 | B9: 6,869 | C9: 6,987 | D9: =C9/B9 -> 101.7% | E9: 121.5%
A10: 六、机关事业单位基本养老保险基金收入 | B10: 22,542 | C10: 23,519 | D10: =C10/B10 -> 104.3% | E10: 107.9%
A11: 七、城乡居民基本医疗保险基金收入 | C11: 0 | D11: —— | E11: ——
A12: 合计 | B12: 29411 | C12: 30506 | D12: =C12/B12 -> 103.7% | E12: 110.7%

Sheet 附表4-21
A1: 附表4-21
A2: 2024年度社会保险基金预算支出决算表
E3: 单位：万元
A4: 项目 | B4: 预算数 | C4: 决算数 | D4: 决算数为预算数的% | E4: 决算数为上年决算数%
A5: 一、企业职工基本养老保险基金支出 | C5: 0 | D5: —— | E5: ——
A6: 二、失业保险基金支出 | C6: 0 | D6: —— | E6: ——
A7: 三、职工基本医疗保险基金支出 | C7: 0 | D7: —— | E7: ——
A8: 四、工伤保险基金支出 | C8: 0 | D8: —— | E8: ——
A9: 五、城乡居民基本养老保险基金支出 | B9: 5,729 | C9: 5,897 | D9: =C9/B9 -> 102.9% | E9: 112.6%
A10: 六、机关事业单位基本养老保险基金支出 | B10: 22,290 | C10: 22,944 | D10: =C10/B10 -> 102.9% | E10: 107.9%
A11: 七、城乡居民基本医疗保险基金支出 | C11: 0 | D11: —— | E11: ——
A12: 合计 | B12: 28019 | C12: 28841 | D12: =C12/B12 -> 102.9% | E12: 108.8%

Sheet 附表4-22
A1: 附表4-22
A2: 2024年度本级社会保险基金预算收入决算表
E3: 单位：万元
A4: 项目 | B4: 预算数 | C4: 决算数 | D4: 决算数为预算数的% | E4: 决算数为上年决算数%
A5: 一、企业职工基本养老保险基金收入 | B5: 0 | C5: 0 | D5: —— | E5: ——
A6: 其中：基本养老保险费收入 | C6: 0 | D6: —— | E6: ——
A7: 财政补贴收入 | C7: 0 | D7: —— | E7: ——
A8: 利息收入 | C8: 0 | D8: —— | E8: ——
A9: 委托投资收益 | C9: 0 | D9: —— | E9: ——
A10: 其他收入 | C10: 0 | D10: —— | E10: ——
A11: 二、失业保险基金收入 | B11: 0 | C11: 0 | D11: —— | E11: ——
A12: 其中：失业保险费收入 | C12: 0 | D12: —— | E12: ——
A13: 财政补贴收入 | C13: 0 | D13: —— | E13: ——
A14: 利息收入 | C14: 0 | D14: —— | E14: ——
A15: 其他收入 | C15: 0 | D15: —— | E15: ——
A16: 三、职工基本医疗保险基金收入 | B16: 0 | C16: 0 | D16: —— | E16: ——
A17: 其中：基本医疗保险费收入 | C17: 0 | D17: —— | E17: ——
A18: 财政补贴收入 | C18: 0 | D18: —— | E18: ——
A19: 利息收入 | C19: 0 | D19: —— | E19: ——
A20: 其他收入 | C20: 0 | D20: —— | E20: ——
A21: 四、工伤保险基金收入 | B21: 0 | C21: 0 | D21: —— | E21: ——
A22: 其中：工伤保险费收入 | C22: 0 | D22: —— | E22: ——
A23: 财政补贴收入 | C23: 0 | D23: —— | E23: ——
A24: 利息收入 | C24: 0 | D24: —— | E24: ——
A25: 职业伤害保障费收入 | C25: 0 | D25: —— | E25: ——
A26: 其他收入 | C26: 0 | D26: —— | E26: ——
A27: 五、城乡居民基本养老保险基金收入 | B27: 6869 | C27: 6987 | D27: =C27/B27 -> 101.7% | E27: 121.5%
A28: 其中：缴费收入 | B28: 896 | C28: 818 | D28: =C28/B28 -> 91.3% | E28: 93.9%
A29: 财政补贴收入 | B29: 5443 | C29: 5519 | D29: =C29/B29 -> 101.4% | E29: 116.9%
A30: 利息收入 | B30: 374 | C30: 401 | D30: =C30/B30 -> 107.2% | E30: 3645.5%
A31: 委托投资收益 | C31: 216 | D31: —— | E31: 194.6%
A32: 集体补助收入 | C32: 30 | D32: —— | E32: 90.9%
A33: 其他收入 | B33: 156 | C33: 3 | D33: =C33/B33 -> 1.9% | E33: 33.3%
A34: 六、机关事业单位基本养老保险基金收入 | B34: 22542 | C34: 23519 | D34: =C34/B34 -> 104.3% | E34: 107.9%
A35: 其中：基本养老保险费收入 | B35: 13234 | C35: 13461 | D35: =C35/B35 -> 101.7% | E35: 102.5%
A36: 财政补贴收入 | B36: 9300 | C36: 9840 | D36: =C36/B36 -> 105.8% | E36: 118.2%
A37: 利息收入 | B37: 8 | C37: 23 | D37: =C37/B37 -> 287.5% | E37: 153.3%
A38: 委托投资收益 | C38: 0 | D38: —— | E38: ——
A39: 其他收入 | C39: 195 | D39: —— | E39: 58.6%
A40: 七、城乡居民基本医疗保险基金收入 | B40: 0 | C40: 0 | D40: —— | E40: ——
A41: 其中：基本医疗保险费收入 | C41: 0 | D41: —— | E41: ——
A42: 财政补贴收入 | C42: 0 | D42: —— | E42: ——
A43: 利息收入 | C43: 0 | D43: —— | E43: ——
A44: 其他收入 | C44: 0 | D44: —— | E44: ——
A45: 合计 | B45: 29411 | C45: 30506 | D45: =C45/B45 -> 103.7% | E45: 110.7%

Sheet 附表4-23
A1: 附表4-23
A2: 2024年度本级社会保险基金预算支出决算表
E3: 单位：万元
A4: 项目 | B4: 预算数 | C4: 决算数 | D4: 决算数为预算数的% | E4: 决算数为上年决算数%
A5: 一、企业职工基本养老保险基金支出 | B5: 0 | C5: 0 | D5: —— | E5: ——
A6: 其中：基本养老金支出 | C6: 0 | D6: —— | E6: ——
A7: 医疗补助金支出 | C7: 0 | D7: —— | E7: ——
A8: 丧葬补助金和抚恤金支出 | C8: 0 | D8: —— | E8: ——
A9: 病残津贴支出 | C9: 0 | D9: —— | E9: ——
A10: 其他支出 | C10: 0 | D10: —— | E10: ——
A11: 二、失业保险基金支出 | B11: 0 | C11: 0 | D11: —— | E11: ——
A12: 其中：失业保险金支出 | C12: 0 | D12: —— | E12: ——
A13: 基本医疗保险费支出 | C13: 0 | D13: —— | E13: ——
A14: 丧葬补助金和抚恤金支出 | C14: 0 | D14: —— | E14: ——
A15: 职业培训和职业介绍补贴支出 | C15: 0 | D15: —— | E15: ——
A16: 技能提升补贴支出 | C16: 0 | D16: —— | E16: ——
A17: 稳定岗位补贴支出 | C17: 0 | D17: —— | E17: ——
A18: 其他费用支出 | C18: 0 | D18: —— | E18: ——
A19: 其他支出 | C19: 0 | D19: —— | E19: ——
A20: 三、职工基本医疗保险基金支出 | B20: 0 | C20: 0 | D20: —— | E20: ——
A21: 其中：职工基本医疗保险统筹基金支出 | C21: 0 | D21: —— | E21: ——
A22: 职工基本医疗保险个人账户基金支出 | C22: 0 | D22: —— | E22: ——
A23: 其他支出 | C23: 0 | D23: —— | E23: ——
A24: 四、工伤保险基金支出 | C24: 0 | D24: —— | E24: ——
A25: 其中：工伤保险待遇支出 | C25: 0 | D25: —— | E25: ——
A26: 劳动能力鉴定支出 | C26: 0 | D26: —— | E26: ——
A27: 工伤预防费用支出 | C27: 0 | D27: —— | E27: ——
A28: 职业伤害保障支出 | C28: 0 | D28: —— | E28: ——
A29: 其他支出 | C29: 0 | D29: —— | E29: ——
A30: 五、城乡居民基本养老保险基金支出 | B30: 5729 | C30: 5897 | D30: =C30/B30 -> 102.9% | E30: 112.6%
A31: 其中：基础养老金支出 | B31: 5729 | C31: 5869 | D31: =C31/B31 -> 102.4% | E31: 112.4%
A32: 个人账户养老金支出 | C32: 0 | D32: —— | E32: ——
A33: 丧葬补助金支出 | C33: 27 | D33: —— | E33: 168.8%
A34: 其他支出 | C34: 1 | D34: —— | E34: ——
A35: 六、机关事业单位基本养老保险基金支出 | B35: 22290 | C35: 22944 | D35: =C35/B35 -> 102.9% | E35: 107.9%
A36: 其中：基本养老金支出 | B36: 22277 | C36: 22793 | D36: =C36/B36 -> 102.3% | E36: 108.4%
A37: 其他支出 | B37: 13 | C37: 151 | D37: =C37/B37 -> 1161.5% | E37: 60.2%
A38: 七、城乡居民基本医疗保险基金支出 | B38: 0 | C38: 0 | D38: —— | E38: ——
A39: 其中：城乡居民基本医疗保险医疗待遇支出 | C39: 0 | D39: —— | E39: ——
A40: 城乡居民大病保险支出 | C40: 0 | D40: —— | E40: ——
A41: 其他支出 | C41: 0 | D41: —— | E41: ——
A42: 合计 | B42: 28019 | C42: 28841 | D42: =C42/B42 -> 102.9% | E42: 108.8%
A44: 备注：按照财政部有关规定，报表中涉及本级支出的，应当公开到功能分类项级科目。

Sheet 附表4-24
A1: 附表4-24
A2: 2024年度地方政府债务限额及余额决算情况表
G3: 单位：亿元
A4: 地区 | B4: 2024年债务限额 | E4: 2024年债务余额决算数
B5: 合计 | C5: 一般债务 | D5: 专项债务 | E5: 合计 | F5: 一般债务 | G5: 专项债务
A6: 鲤城区合计 | B6: 93.42 | C6: 24.39 | D6: 69.03 | E6: 91.25 | F6: 23.15 | G6: 68.10
A7: 一、鲤城区本级 | B7: 93.42 | C7: 24.39 | D7: 69.03 | E7: 91.25 | F7: 23.15 | G7: 68.10
A8: 二、鲤城区下级合计 | B8: 0.00 | C8: 0.00 | D8: 0.00 | E8: 0.00 | F8: 0.00 | G8: 0.00
A9: 下级地区1
A10: 下级地区2
A11: ……

Sheet 附表4-25
A1: 附表4-25
A2: 2024年度地方政府债务相关情况表
C3: 单位：亿元
A4: 项目 | B4: 本地区金额 | C4: 本级金额
A5: 一、2023年末地方政府债务余额 | B5: 67.90 | C5: 67.90
A6: 其中：一般债务 | B6: 22.59 | C6: 22.59
A7: 专项债务 | B7: 45.31 | C7: 45.31
A8: 二、2023年地方政府债务限额 | B8: 70.13 | C8: 70.13
A9: 其中：一般债务 | B9: 24.76 | C9: 24.76
A10: 专项债务 | B10: 45.37 | C10: 45.37
A11: 三、2024年地方政府债券发行决算数 | B11: 28.44 | C11: 28.44
A12: 新增一般债券发行额 | B12: 4.08 | C12: 4.08
A13: 再融资一般债券发行额
A14: 新增专项债券发行额 | B14: 24.36 | C14: 24.36
A15: 再融资专项债券发行额
A16: 四、2024年地方政府债券还本支出决算数 | B16: 5.10 | C16: 5.10
A17: 一般债券还本支出 | B17: 3.52 | C17: 3.52
A18: 专项债券还本支出 | B18: 1.57 | C18: 1.57
A19: 五、2024年地方政府债券付息支出决算数 | B19: 2.37 | C19: 2.37
A20: 一般债券付息支出 | B20: 0.79 | C20: 0.79
A21: 专项债券付息支出 | B21: 1.58 | C21: 1.58
A22: 六、2024年末地方政府债务余额决算数 | B22: 91.25 | C22: 91.25
A23: 其中：一般债务 | B23: 23.15 | C23: 23.15
A24: 专项债务 | B24: 68.10 | C24: 68.10
A25: 七、2024年地方政府债务限额 | B25: 93.42 | C25: 93.42
A26: 其中：一般债务 | B26: 24.39 | C26: 24.39
A27: 专项债务 | B27: 69.03 | C27: 69.03

Sheet 附表4-26
A1: 附表4-26
A2: 2024年度地方政府债券发行及还本付息分地区情况表
C3: 单位：亿元
A4: 地区 | B4: 2024年地方政府债券发行额 | C4: 2024地方政府债券还本付息
A5: 鲤城区合计 | B5: 28.44 | C5: 7.47
A6: 一、鲤城区本级 | B6: 28.44 | C6: 7.47
A7: 二、鲤城区下级合计 | B7: 0 | C7: 0
A8: 下级地区1
A9: 下级地区2
A10: ……

Sheet 附表4-27
A1: 附表4-27
A2: 2024年度地方政府债务余额分年度到期情况表
G3: 单位：亿元
A4: 地区 | B4: 2024年底政府债务余额 | C4: 政府债务到期情况
C5: 2025年 | D5: 2026年 | E5: 2027年 | F5: 2028年 | G5: 2029年及以后年度
A6: 鲤城区 | B6: 91.25 | C6: =C7+C8 -> 4.20 | D6: 3.92 | E6: 3.94 | F6: 1.51 | G6: 77.68
A7: 一般债务 | B7: 23.15 | C7: 2.29 | D7: 1.50 | E7: 3.45 | F7: 1.33 | G7: =B7-C7-D7-E7-F7 -> 14.58
A8: 专项债务 | B8: 68.1 | C8: 1.91 | D8: 2.42 | E8: 0.49 | F8: 0.18 | G8: 63.10
A9: 鲤城区本级 | B9: 91.25 | C9: =C10+C11 -> 4.20 | D9: 3.92 | E9: 3.94 | F9: 1.51 | G9: 77.68
A10: 一般债务 | B10: 23.15 | C10: 2.29 | D10: 1.50 | E10: 3.45 | F10: 1.33 | G10: 14.58
A11: 专项债务 | B11: 68.1 | C11: 1.91 | D11: 2.42 | E11: 0.49 | F11: 0.18 | G11: 63.10

Sheet 附表4-28
A1: 附表4-28
A2: 2024年度本级地方政府债券建设项目情况表
D3: 单位：万元
A4: 项目名称 | B4: 使用单位名称 | C4: 投向领域 | D4: 债券性质 | E4: 债券金额 | F4: 发行时间（年/月）
A5: 鲤城区公共卫生服务中心二期 | B5: 泉州市鲤城区卫健局 | C5: 卫生健康 | D5: 专项债券 | E5: 2400.00 | F5: 2024年5月
A6: “国家级高新区”——新能源新材料产业基地建设及基础设施项目 | B6: 泉州市鲤城高新技术产业开发区管理委员会 | C6: 市政和产业园区基础设施 | D6: 专项债券 | E6: 120000.00 | F6: 2024年8月
A7: “国家级高新区”——产业基地建设及基础设施项目 | B7: 泉州市鲤城高新技术产业开发区管理委员会 | C7: 市政和产业园区基础设施 | D7: 专项债券 | E7: 70000.00 | F7: 2024年8月
A8: 公厕改建改造工程 | B8: 泉州市鲤城区城市管理局 | C8: 社会事业 | D8: 一般债券 | E8: 160.00 | F8: 2024年8月
A9: 笋江桥修复整治工程 | B9: 泉州市鲤城区城市管理局 | C9: 社会事业 | D9: 一般债券 | E9: 450.00 | F9: 2024年8月
A10: 通政中心小学北校区建设项目 | B10: 通政中心小学 | C10: 社会事业 | D10: 一般债券 | E10: 2412.00 | F10: 2024年8月
